Workbook

Sheet Language

Sheet Exh 1-2
E1: Exhibit 1. P&L Forecast, company LoA
A2: P&L | E2: Previous years | H2: Forecast
A3: (million Brazilian real) | B3: Assumptions | D3: 2022 | E3: =D3+1 -> 2023 | F3: =E3+1 -> 2024 | H3: 2025 | I3: =H3+1 -> 2026
A4: Sales | D4: 100 | E4: 140 | F4: 175 | H4: =F4*(1+H19) -> 210 | I4: =H4*(1+I19) -> 231
A5: COGS | D5: 80 | E5: 113.4 | F5: 143.5 | H5: =H4*(1-H20) -> 174.3 | I5: =I4*(1-I20) -> 194.04
A6: Gross Margin | D6: 20 | E6: 26.6 | F6: 31.5 | H6: =H4-H5 -> 35.7 | I6: =I4-I5 -> 36.96
A7: Salaries | D7: 5 | E7: 6.06 | F7: 7.13 | H7: =F7*(1+H22) -> 7.843 | I7: =H7*(1+I22) -> 8.6273
A8: Overhead | D8: 5 | E8: 6.06 | F8: 7.13 | H8: =F8*(1+H22) -> 7.843 | I8: =H8*(1+I22) -> 8.6273
A9: Opex Operating Expenses | D9: 10 | E9: 12.12 | F9: 14.26 | H9: =H7+H8 -> 15.686 | I9: =I7+I8 -> 17.2546
A10: EBITDA | D10: 10 | E10: 14.48 | F10: 17.24 | H10: =H6-H9 -> 20.014 | I10: =I6-I9 -> 19.7054
A11: Depreciation | B11: 0.1 | C11: x FA | D11: 2 | E11: 2 | F11: 2.1 | H11: =$B$11*F68 -> 2.3 | I11: =$B$11*H68 -> 2.37
A12: EBIT | D12: 8 | E12: 12.48 | F12: 15.14 | H12: =H10-H11 -> 17.714 | I12: =I10-I11 -> 17.3354
A13: Financial Expenses | B13: 0.1 | C13: x Debt | D13: 2 | E13: 2.288327763 | F13: 4.233508094 | H13: =$B$13*F71 -> 3.527923412 | I13: =$B$13*H71 -> 4.180265924
A14: EBT | D14: 6 | E14: 10.19167224 | F14: 10.90649191 | H14: =H12-H13 -> 14.18607659 | I14: =I12-I13 -> 13.15513408
A15: Taxes (25%) | B15: 0.25 | D15: 1.5 | E15: 2.547918059 | F15: 2.726622976 | H15: =H14*$B$15 -> 3.546519147 | I15: =I14*$B$15 -> 3.288783519
A16: Net Income | D16: 4.5 | E16: 7.643754177 | F16: 8.179868929 | H16: =H14-H15 -> 10.63955744 | I16: =I14-I15 -> 9.866350557
A18: P&L Ratios | H18: Assumptions
A19: Growth of Sales | D19: 0.7 | E19: =E4/D4-1 -> 0.4 | F19: =F4/E4-1 -> 0.25 | H19: 0.2 | I19: 0.1
A20: Gross Margin / Sales | D20: =D6/D4 -> 0.2 | E20: =E6/E4 -> 0.19 | F20: =F6/F4 -> 0.18 | H20: 0.17 | I20: 0.16
A21: Opex / Sales | D21: =D9/D4 -> 0.1 | E21: =E9/E4 -> 0.08657142857 | F21: =F9/F4 -> 0.08148571429 | H21: =H9/H4 -> 0.0746952381 | I21: =I9/I4 -> 0.0746952381
A22: Increase of Opex | D22: 0.2 | E22: =E9/D9-1 -> 0.212 | F22: =F9/E9-1 -> 0.1765676568 | H22: 0.1 | I22: 0.1
A23: EBITDA / Sales | D23: =D10/D4 -> 0.1 | E23: =E10/E4 -> 0.1034285714 | F23: =F10/F4 -> 0.09851428571 | H23: =H10/H4 -> 0.0953047619 | I23: =I10/I4 -> 0.0853047619
A24: ROS, Net Income / Sales | D24: =D16/D4 -> 0.045 | E24: =E16/E4 -> 0.05459824412 | F24: =F16/F4 -> 0.04674210817 | H24: =H16/H4 -> 0.05066455924 | I24: =I16/I4 -> 0.04271147427
A25: ROA, Net Income / Total assets | D25: =D16/D40 -> 0.07707648991 | E25: =E16/E40 -> 0.1113005256 | F25: =F16/F40 -> 0.08859501956 | H25: =H16/H40 -> 0.0993727777 | I25: =I16/I40 -> 0.08489103921
A26: RONA, EBIT / Net Assets | D26: =D12/D69 -> 0.1467889908 | E26: =E12/E69 -> 0.1982628683 | F26: =F12/F69 -> 0.1768632554 | H26: =H12/H69 -> 0.1795169747 | I26: =I12/I69 -> 0.1611481559
A27: ROE, Net Income / Equity | D27: =D16/D48 -> 0.15 | E27: =E16/E48 -> 0.2215580921 | F27: =F16/F48 -> 0.1940944534 | H27: =H16/H48 -> 0.2301256455 | I27: =I16/I48 -> 0.1913809306
A28: CFO =Net Income + Depreciation | D28: =D16+D11 -> 6.5 | E28: =E16+E11 -> 9.643754177 | F28: =F16+F11 -> 10.27986893 | H28: =H16+H11 -> 12.93955744 | I28: =I16+I11 -> 12.23635056
A29: Inflation | D29: 0.09 | E29: 0.1 | F29: 0.11 | H29: 0.1 | I29: 0.1
A30: Interest rate | D30: =D13/D71 -> 0.1 | E30: =E13/E71 -> 0.11 | F30: =F13/F71 -> 0.12 | H30: 0.1 | I30: 0.1
E32: Exhibit 2. Balance sheet Forecast, company LoA
A33: Assets
A34: (million Brazilian real) | D34: =D3 -> 2022 | E34: =E3 -> 2023 | F34: =F3 -> 2024 | H34: =H3 -> 2025 | I34: =I3 -> 2026 | J34: In % Sales
A35: Cash | D35: =MAX(D50-D36-D37-D39,0) -> 7.150684932 | E35: =MAX(E50-E36-E37-E39,0) -> 0 | F35: =MAX(F50-F36-F37-F39,0) -> 7.105427358e-15 | H35: =MAX(H50-H36-H37-H39,0) -> 7.105427358e-15 | I35: =MAX(I50-I36-I37-I39,0) -> 7.105427358e-15 | J35: year 2025
A36: Receivables | D36: 24.65753425 | E36: 38.35616438 | F36: 57.53424658 | H36: =H4/365*H57 -> 69.04109589 | I36: =I4/365*I57 -> 75.94520548 | J36: =H36/H$4 -> 0.3287671233
A37: Inventory | D37: 6.575342466 | E37: 9.320547945 | F37: 11.79452055 | H37: =H5/365*H58 -> 14.3260274 | I37: =I5/365*I58 -> 15.94849315 | J37: =H37/H$4 -> 0.06821917808
A38: Current Assets, CA | D38: =SUM(D35:D37) -> 38.38356164 | E38: =SUM(E35:E37) -> 47.67671233 | F38: =SUM(F35:F37) -> 69.32876712 | H38: =SUM(H35:H37) -> 83.36712329 | I38: =SUM(I35:I37) -> 91.89369863
A39: Fixed (non current) Assets net, FA | D39: 20 | E39: 21 | F39: 23 | H39: =F39+H53-H11 -> 23.7 | I39: =H39+I53-I11 -> 24.33
A40: Total Assets | D40: =D38+D39 -> 58.38356164 | E40: =E38+E39 -> 68.67671233 | F40: =F38+F39 -> 92.32876712 | H40: =H38+H39 -> 107.0671233 | I40: =I38+I39 -> 116.2236986
A42: Liabilities + Equity
A43: Payables | D43: 2.383561644 | E43: 3.182060424 | F43: 3.999286921 | H43: =H52/365*H59 -> 4.844698818 | I43: =I52/365*I59 -> 5.3606155 | J43: =H43/H$4 -> 0.02306999437
A44: Other Liabilities | D44: 1.5 | E44: 2.547918059 | F44: 2.726622976 | H44: =H15 -> 3.546519147 | I44: =I15 -> 3.288783519 | J44: =H44/H$4 -> 0.01688818641
A45: Bank Credit | D45: =MAX(D76-D77,0) -> 0 | E45: =MAX(E76-E77,0) -> 5.802979668 | F45: =MAX(F76-F77,0) -> 25.27923412 | H45: =MAX(H76-H77,0) -> 36.80265924 | I45: =MAX(I76-I77,0) -> 46.15448169
A46: Current Liabilities | D46: =D43+D44+D45 -> 3.883561644 | E46: =E43+E44+E45 -> 11.53295815 | F46: =F43+F44+F45 -> 32.00514402 | H46: =H43+H44+H45 -> 45.1938772 | I46: =I43+I44+I45 -> 54.80388071
A47: Loan (Long-term Debt) | B47: 5 | C47: Payment | D47: 20 | E47: 15 | F47: 10 | H47: =F47-$B$47 -> 5 | I47: =H47-B47 -> 0
A48: Equity + Reserves | D48: 30 | E48: 34.5 | F48: 42.14375418 | H48: =F48+F49*(1-H54) -> 46.23368864 | I48: =H48+H49*(1-I54) -> 51.55346736
A49: Net Income of the year | D49: 4.5 | E49: 7.643754177 | F49: 8.179868929 | H49: =H16 -> 10.63955744 | I49: =I16 -> 9.866350557
A50: Total Liabilities + Equity | D50: =D46+D47+D48+D49 -> 58.38356164 | E50: =E46+E47+E48+E49 -> 68.67671233 | F50: =F46+F47+F48+F49 -> 92.32876712 | H50: =H46+H47+H48+H49 -> 107.0671233 | I50: =I46+I47+I48+I49 -> 116.2236986
A52: Purchases | D52: 87 | E52: =E5+(E37-D37) -> 116.1452055 | F52: =F5+(F37-E37) -> 145.9739726 | H52: =H5+(H37-F37) -> 176.8315068 | I52: =I5+(I37-H37) -> 195.6624658
A53: Capex o new investments in FA | E53: 3 | F53: 4.1 | H53: 3 | I53: 3
A54: Pay Out or % dividends | H54: 0.5 | I54: 0.5
A56: Balance Sheet Ratios | D56: =D65 -> 2022 | E56: =E65 -> 2023 | F56: =F65 -> 2024
A57: Receivables in Days | D57: 90 | E57: 100 | F57: 120 | H57: 120 | I57: 120
A58: Inventory in Days | D58: 30 | E58: 30 | F58: 30 | H58: 30 | I58: 30
A59: Payables in Days | D59: 10 | E59: 10 | F59: 10 | H59: 10 | I59: 10
A60: NFO / Sales in % | D60: =D67/D4 -> 0.2734931507 | E60: =E67/E4 -> 0.2996195275 | F60: =F67/F4 -> 0.3577306127 | H60: =H67/H4 -> 0.3570281206 | I60: =I67/I4 -> 0.3603649334
A61: Leverage = Liabilities. / Equity | D61: =(D46+D47)/D72 -> 0.6922771491 | E61: =(E46+E47)/E72 -> 0.6295822161 | F61: =(F46+F47)/F72 -> 0.8347003142 | H61: =(H46+H47)/H72 -> 0.8825569255 | I61: =(I46+I47)/I72 -> 0.8922833471
A62: Debt / EBITDA | D62: =D71/D10 -> 2 | E62: =E71/E10 -> 1.436669867 | F62: =F71/F10 -> 2.046359288 | H62: =H71/H10 -> 2.088670892 | I62: =I71/I10 -> 2.34222506
A63: Debt / Net Income | D63: =D71/D16 -> 4.444444444 | E63: =E71/E16 -> 2.721565763 | F63: =F71/F16 -> 4.312933914 | H63: =H71/H16 -> 3.928984779 | I63: =I71/I16 -> 4.677968964
A65: Short Balance Sheet | D65: =D3 -> 2022 | E65: =E3 -> 2023 | F65: =F3 -> 2024 | H65: =H3 -> 2025 | I65: =I3 -> 2026 | J65: Diff. 2026-24
A66: Cash Surplus | D66: =D35-0 -> 7.150684932 | E66: =E35-E99 -> 0 | F66: =F35-F99 -> 7.105427358e-15 | H66: =H35-H99 -> 7.105427358e-15 | I66: =I35-I99 -> 7.105427358e-15
A67: NFO or Net Current Assets | D67: =D36+D37-D43-D44 -> 27.34931507 | E67: =E36+E37-E43-E44 -> 41.94673385 | F67: =F36+F37-F43-F44 -> 62.60285723 | H67: =H36+H37-H43-H44 -> 74.97590532 | I67: =I36+I37-I43-I44 -> 83.24429961 | J67: =I67-F67 -> 20.64144238
A68: FA or Fixed Assets Net | D68: =D39 -> 20 | E68: =E39 -> 21 | F68: =F39 -> 23 | H68: =H39 -> 23.7 | I68: =I39 -> 24.33 | J68: =I68-F68 -> 1.33
A69: NA, Net Assets | D69: =D66+D67+D68 -> 54.5 | E69: =E66+E67+E68 -> 62.94673385 | F69: =F66+F67+F68 -> 85.60285723 | H69: =H66+H67+H68 -> 98.67590532 | I69: =I66+I67+I68 -> 107.5742996
A71: D, Debt (long & short term) | D71: =D45+D47 -> 20 | E71: =E45+E47 -> 20.80297967 | F71: =F45+F47 -> 35.27923412 | H71: =H45+H47 -> 41.80265924 | I71: =I45+I47 -> 46.15448169 | J71: =I71-F71 -> 10.87524757
A72: E, Equity | D72: =D48+D49 -> 34.5 | E72: =E48+E49 -> 42.14375418 | F72: =F48+F49 -> 50.32362311 | H72: =H48+H49 -> 56.87324608 | I72: =I48+I49 -> 61.41981792 | J72: =I72-F72 -> 11.09619481
A73: Total Financing | D73: =D71+D72 -> 54.5 | E73: =E71+E72 -> 62.94673385 | F73: =F71+F72 -> 85.60285723 | H73: =H71+H72 -> 98.67590532 | I73: =I71+I72 -> 107.5742996
A75: Shortest Balance Sheet: NFO vs WC | D75: =D65 -> 2022 | E75: =E65 -> 2023 | F75: =F65 -> 2024 | H75: =H65 -> 2025 | I75: =I65 -> 2026
A76: NFO | D76: =D67 -> 27.34931507 | E76: =E67 -> 41.94673385 | F76: =F67 -> 62.60285723 | H76: =H67 -> 74.97590532 | I76: =I67 -> 83.24429961 | J76: =I76-F76 -> 20.64144238
A77: WC | D77: =D47+D48+D49-D39 -> 34.5 | E77: =E47+E48+E49-E39 -> 36.14375418 | F77: =F47+F48+F49-F39 -> 37.32362311 | H77: =H47+H48+H49-H39 -> 38.17324608 | I77: =I47+I48+I49-I39 -> 37.08981792 | J77: =I77-F77 -> -0.2338051871
A78: Cash Surplus (+) | D78: =D77-D76 -> 7.150684932 | E78: =E77-E76 -> -5.802979668 | F78: =F77-F76 -> -25.27923412 | H78: =H77-H76 -> -36.80265924 | I78: =I77-I76 -> -46.15448169
A79: Credit Needed (-)

Sheet Anex 1-2 (hidden)
E1: Anexo 1. Previsión de PyG, empresa LoA
A2: Cuenta de PyG | E2: Años anteriores | H2: Previsión
A3: (millones de reales) | B3: Hipótesis | D3: 2022 | E3: =D3+1 -> 2023 | F3: =E3+1 -> 2024 | H3: 2025 | I3: =H3+1 -> 2026
A4: Ventas | D4: 100 | E4: 140 | F4: 175 | H4: =F4*(1+H19) -> 210 | I4: =H4*(1+I19) -> 231
A5: CMV | D5: 80 | E5: 113.4 | F5: 143.5 | H5: =H4*(1-H20) -> 174.3 | I5: =I4*(1-I20) -> 194.04
A6: Margen bruto | D6: 20 | E6: 26.6 | F6: 31.5 | H6: =H4-H5 -> 35.7 | I6: =I4-I5 -> 36.96
A7: Salarios | D7: 5 | E7: 6.06 | F7: 7.13 | H7: =F7*(1+H22) -> 7.843 | I7: =H7*(1+I22) -> 8.6273
A8: Gastos generales | D8: 5 | E8: 6.06 | F8: 7.13 | H8: =F8*(1+H22) -> 7.843 | I8: =H8*(1+I22) -> 8.6273
A9: Opex o Gastos operativos (de estructura) | D9: 10 | E9: 12.12 | F9: 14.26 | H9: =H7+H8 -> 15.686 | I9: =I7+I8 -> 17.2546
A10: EBITDA | D10: 10 | E10: 14.48 | F10: 17.24 | H10: =H6-H9 -> 20.014 | I10: =I6-I9 -> 19.7054
A11: Amortización | B11: 0.1 | C11: x AF | D11: 2 | E11: 2 | F11: 2.1 | H11: =$B$11*F68 -> 2.3 | I11: =$B$11*H68 -> 2.37
A12: EBIT o BAIT | D12: 8 | E12: 12.48 | F12: 15.14 | H12: =H10-H11 -> 17.714 | I12: =I10-I11 -> 17.3354
A13: Gastos financieros | B13: 0.1 | C13: x Deuda | D13: 2 | E13: 2.288327763 | F13: 4.233508094 | H13: =$B$13*F71 -> 3.527923412 | I13: =$B$13*H71 -> 4.180265924
A14: EBT o BAT Benef antes de impuestos | D14: 6 | E14: 10.19167224 | F14: 10.90649191 | H14: =H12-H13 -> 14.18607659 | I14: =I12-I13 -> 13.15513408
A15: Impuestos (25%) | B15: 0.25 | D15: 1.5 | E15: 2.547918059 | F15: 2.726622976 | H15: =H14*$B$15 -> 3.546519147 | I15: =I14*$B$15 -> 3.288783519
A16: BN Beneficio neto o Resultado | D16: 4.5 | E16: 7.643754177 | F16: 8.179868929 | H16: =H14-H15 -> 10.63955744 | I16: =I14-I15 -> 9.866350557
A18: Ratios de cuenta de resultados | F18: Hipótesis en negrita y verde | H18: Hipótesis
A19: Crecimiento de ventas (g) | D19: 0.7 | E19: =E4/D4-1 -> 0.4 | F19: =F4/E4-1 -> 0.25 | H19: 0.2 | I19: 0.1 | M19: =AVERAGE(D19:F19) -> 0.45 | N19: Media de crecimiento ventas
A20: Margen bruto / Ventas | D20: =D6/D4 -> 0.2 | E20: =E6/E4 -> 0.19 | F20: =F6/F4 -> 0.18 | H20: 0.17 | I20: 0.16 | M20: =(F20-D20)*100 -> -2 | N20: pp, puntos porcentuales
A21: Opex / Ventas | D21: =D9/D4 -> 0.1 | E21: =E9/E4 -> 0.08657142857 | F21: =F9/F4 -> 0.08148571429 | H21: =H9/H4 -> 0.0746952381 | I21: =I9/I4 -> 0.0746952381 | M21: =(F21-D21)*100 -> -1.851428571 | N21: pp
A22: Aumento de Opex | D22: 0.2 | E22: =E9/D9-1 -> 0.212 | F22: =F9/E9-1 -> 0.1765676568 | H22: 0.1 | I22: 0.1 | M22: =AVERAGE(D22:F22) -> 0.1961892189 | N22: media de 2 años
A23: EBITDA / Ventas | D23: =D10/D4 -> 0.1 | E23: =E10/E4 -> 0.1034285714 | F23: =F10/F4 -> 0.09851428571 | H23: =H10/H4 -> 0.0953047619 | I23: =I10/I4 -> 0.0853047619 | M23: =(F23-D23)*100 -> -0.1485714286 | N23: pp
A24: ROS, Beneficio / ventas | D24: =D16/D4 -> 0.045 | E24: =E16/E4 -> 0.05459824412 | F24: =F16/F4 -> 0.04674210817 | H24: =H16/H4 -> 0.05066455924 | I24: =I16/I4 -> 0.04271147427 | M24: Rentabilidad s/ ventas
A25: ROA, Benef. / activo total | D25: =D16/D40 -> 0.07707648991 | E25: =E16/E40 -> 0.1113005256 | F25: =F16/F40 -> 0.08859501956 | H25: =H16/H40 -> 0.0993727777 | I25: =I16/I40 -> 0.08489103921 | M25: Rentabilidad del activo total
A26: RONA, EBIT / activo neto | D26: =D12/D69 -> 0.1467889908 | E26: =E12/E69 -> 0.1982628683 | F26: =F12/F69 -> 0.1768632554 | H26: =H12/H69 -> 0.1795169747 | I26: =I12/I69 -> 0.1611481559 | M26: Rentabilidad del activo neto
A27: ROE, Beneficio / Equity | D27: =D16/D48 -> 0.15 | E27: =E16/E48 -> 0.2215580921 | F27: =F16/F48 -> 0.1940944534 | H27: =H16/H48 -> 0.2301256455 | I27: =I16/I48 -> 0.1913809306 | M27: Rentab del capital (equity)
A28: CFO = Beneficio neto + amortización | D28: =D16+D11 -> 6.5 | E28: =E16+E11 -> 9.643754177 | F28: =F16+F11 -> 10.27986893 | H28: =H16+H11 -> 12.93955744 | I28: =I16+I11 -> 12.23635056 | M28: CFO cash flow operaciones
A29: Inflación | D29: 0.09 | E29: 0.1 | F29: 0.11 | H29: 0.1 | I29: 0.1
A30: Tipo de interés | D30: =D13/D71 -> 0.1 | E30: =E13/E71 -> 0.11 | F30: =F13/F71 -> 0.12 | H30: 0.1 | I30: 0.1
E32: Anexo 2. Previsión de Balances, empresa LoA
A33: Activo
A34: =A3 -> (millones de reales) | D34: =D3 -> 2022 | E34: =E3 -> 2023 | F34: =F3 -> 2024 | H34: =H3 -> 2025 | I34: =I3 -> 2026 | J34: En % Vtas
A35: Caja | D35: =MAX(D50-D36-D37-D39,0) -> 7.150684932 | E35: =MAX(E50-E36-E37-E39,0) -> 0 | F35: =MAX(F50-F36-F37-F39,0) -> 7.105427358e-15 | H35: =MAX(H50-H36-H37-H39,0) -> 7.105427358e-15 | I35: =MAX(I50-I36-I37-I39,0) -> 7.105427358e-15 | J35: año 2025
A36: Clientes | D36: 24.65753425 | E36: 38.35616438 | F36: 57.53424658 | H36: =H4/365*H57 -> 69.04109589 | I36: =I4/365*I57 -> 75.94520548 | J36: =H36/H$4 -> 0.3287671233
A37: Existencias | D37: 6.575342466 | E37: 9.320547945 | F37: 11.79452055 | H37: =H5/365*H58 -> 14.3260274 | I37: =I5/365*I58 -> 15.94849315 | J37: =H37/H$4 -> 0.06821917808
A38: Activo corriente, AC | D38: =SUM(D35:D37) -> 38.38356164 | E38: =SUM(E35:E37) -> 47.67671233 | F38: =SUM(F35:F37) -> 69.32876712 | H38: =SUM(H35:H37) -> 83.36712329 | I38: =SUM(I35:I37) -> 91.89369863
A39: Activo no corriente o fijo, AF | D39: 20 | E39: 21 | F39: 23 | H39: =F39+H53-H11 -> 23.7 | I39: =H39+I53-I11 -> 24.33
A40: Activo total | D40: =D38+D39 -> 58.38356164 | E40: =E38+E39 -> 68.67671233 | F40: =F38+F39 -> 92.32876712 | H40: =H38+H39 -> 107.0671233 | I40: =I38+I39 -> 116.2236986
A42: Pasivo y Patrimonio
A43: Proveedores | D43: 2.383561644 | E43: 3.182060424 | F43: 3.999286921 | H43: =H52/365*H59 -> 4.844698818 | I43: =I52/365*I59 -> 5.3606155 | J43: =H43/H$4 -> 0.02306999437
A44: Otros acreedores | D44: 1.5 | E44: 2.547918059 | F44: 2.726622976 | H44: =H15 -> 3.546519147 | I44: =I15 -> 3.288783519 | J44: =H44/H$4 -> 0.01688818641
A45: Deuda a corto (líneas de crédito) | D45: =MAX(D76-D77,0) -> 0 | E45: =MAX(E76-E77,0) -> 5.802979668 | F45: =MAX(F76-F77,0) -> 25.27923412 | H45: =MAX(H76-H77,0) -> 36.80265924 | I45: =MAX(I76-I77,0) -> 46.15448169
A46: Pasivo corriente | D46: =D43+D44+D45 -> 3.883561644 | E46: =E43+E44+E45 -> 11.53295815 | F46: =F43+F44+F45 -> 32.00514402 | H46: =H43+H44+H45 -> 45.1938772 | I46: =I43+I44+I45 -> 54.80388071
A47: Deuda a largo | B47: 5 | C47: Pago anual | D47: 20 | E47: 15 | F47: 10 | H47: =F47-$B$47 -> 5 | I47: =H47-B47 -> 0
A48: Patrimonio (Capital y reservas) | D48: 30 | E48: 34.5 | F48: 42.14375418 | H48: =F48+F49*(1-H54) -> 46.23368864 | I48: =H48+H49*(1-I54) -> 51.55346736
A49: Beneficio del año o Resultado | D49: 4.5 | E49: 7.643754177 | F49: 8.179868929 | H49: =H16 -> 10.63955744 | I49: =I16 -> 9.866350557
A50: Total pasivo y patrimonio | D50: =D46+D47+D48+D49 -> 58.38356164 | E50: =E46+E47+E48+E49 -> 68.67671233 | F50: =F46+F47+F48+F49 -> 92.32876712 | H50: =H46+H47+H48+H49 -> 107.0671233 | I50: =I46+I47+I48+I49 -> 116.2236986
A52: Compras | D52: 87 | E52: =E5+(E37-D37) -> 116.1452055 | F52: =F5+(F37-E37) -> 145.9739726 | H52: =H5+(H37-F37) -> 176.8315068 | I52: =I5+(I37-H37) -> 195.6624658 | K52: CMV + variac existencias
A53: Capex o Nueva inversión bruta | E53: 3 | F53: 4.1 | H53: 3 | I53: 3 | K53: Variación AF + amortización
A54: Pay Out o % dividendos | H54: 0.5 | I54: 0.5
A56: Ratios de balance | D56: =D65 -> 2022 | E56: =E65 -> 2023 | F56: =F65 -> 2024 | K56: En % de Ventas 2024
A57: Días de cobro | D57: 90 | E57: 100 | F57: 120 | H57: 120 | I57: 120 | L57: Clientes = | M57: =F36/F4 -> 0.3287671233
A58: Días de existencias | D58: 30 | E58: 30 | F58: 30 | H58: 30 | I58: 30 | L58: Existencias = | M58: =F37/F4 -> 0.06739726027
A59: Días de pago | D59: 10 | E59: 10 | F59: 10 | H59: 10 | I59: 10 | L59: Proveed + otros = | M59: =(F43+F44)/F4 -> 0.03843377084
A60: NOF / Ventas en % | D60: =D67/D4 -> 0.2734931507 | E60: =E67/E4 -> 0.2996195275 | F60: =F67/F4 -> 0.3577306127 | H60: =H67/H4 -> 0.3570281206 | I60: =I67/I4 -> 0.3603649334 | L60: NOF = | M60: =M57+M58-M59 -> 0.3577306127
A61: Apalancamiento (Pasivo / Patrimonio) | D61: =(D46+D47)/D72 -> 0.6922771491 | E61: =(E46+E47)/E72 -> 0.6295822161 | F61: =(F46+F47)/F72 -> 0.8347003142 | H61: =(H46+H47)/H72 -> 0.8825569255 | I61: =(I46+I47)/I72 -> 0.8922833471
A62: Deuda / EBITDA | D62: =D71/D10 -> 2 | E62: =E71/E10 -> 1.436669867 | F62: =F71/F10 -> 2.046359288 | H62: =H71/H10 -> 2.088670892 | I62: =I71/I10 -> 2.34222506
A63: Deuda / Benef neto | D63: =D71/D16 -> 4.444444444 | E63: =E71/E16 -> 2.721565763 | F63: =F71/F16 -> 4.312933914 | H63: =H71/H16 -> 3.928984779 | I63: =I71/I16 -> 4.677968964
A65: Balance corto | D65: =D3 -> 2022 | E65: =E3 -> 2023 | F65: =F3 -> 2024 | H65: =H3 -> 2025 | I65: =I3 -> 2026 | J65: Dif. 2026-24
A66: Caja excedente | D66: =D35-0 -> 7.150684932 | E66: =E35-E99 -> 0 | F66: =F35-F99 -> 7.105427358e-15 | H66: =H35-H99 -> 7.105427358e-15 | I66: =I35-I99 -> 7.105427358e-15
A67: NOF o circulante neto | D67: =D36+D37-D43-D44 -> 27.34931507 | E67: =E36+E37-E43-E44 -> 41.94673385 | F67: =F36+F37-F43-F44 -> 62.60285723 | H67: =H36+H37-H43-H44 -> 74.97590532 | I67: =I36+I37-I43-I44 -> 83.24429961 | J67: =I67-F67 -> 20.64144238 | L67: 0.046
A68: AF o activo fijo neto | D68: =D39 -> 20 | E68: =E39 -> 21 | F68: =F39 -> 23 | H68: =H39 -> 23.7 | I68: =I39 -> 24.33 | J68: =I68-F68 -> 1.33 | L68: 0.2
A69: AN o activo neto | D69: =D66+D67+D68 -> 54.5 | E69: =E66+E67+E68 -> 62.94673385 | F69: =F66+F67+F68 -> 85.60285723 | H69: =H66+H67+H68 -> 98.67590532 | I69: =I66+I67+I68 -> 107.5742996 | L69: =L68-L67 -> 0.154
A71: D, Deuda (a largo y corto) | D71: =D45+D47 -> 20 | E71: =E45+E47 -> 20.80297967 | F71: =F45+F47 -> 35.27923412 | H71: =H45+H47 -> 41.80265924 | I71: =I45+I47 -> 46.15448169 | J71: =I71-F71 -> 10.87524757 | L71: =L67/L69 -> 0.2987012987
A72: E, Equity o Patrimonio | D72: =D48+D49 -> 34.5 | E72: =E48+E49 -> 42.14375418 | F72: =F48+F49 -> 50.32362311 | H72: =H48+H49 -> 56.87324608 | I72: =I48+I49 -> 61.41981792 | J72: =I72-F72 -> 11.09619481
A73: Financiación total | D73: =D71+D72 -> 54.5 | E73: =E71+E72 -> 62.94673385 | F73: =F71+F72 -> 85.60285723 | H73: =H71+H72 -> 98.67590532 | I73: =I71+I72 -> 107.5742996
A75: Extracto del balance, NOF vs FM | D75: =D65 -> 2022 | E75: =E65 -> 2023 | F75: =F65 -> 2024 | H75: =H65 -> 2025 | I75: =I65 -> 2026
A76: NOF | D76: =D67 -> 27.34931507 | E76: =E67 -> 41.94673385 | F76: =F67 -> 62.60285723 | H76: =H67 -> 74.97590532 | I76: =I67 -> 83.24429961 | J76: =I76-F76 -> 20.64144238
A77: FM | D77: =D47+D48+D49-D39 -> 34.5 | E77: =E47+E48+E49-E39 -> 36.14375418 | F77: =F47+F48+F49-F39 -> 37.32362311 | H77: =H47+H48+H49-H39 -> 38.17324608 | I77: =I47+I48+I49-I39 -> 37.08981792 | J77: =I77-F77 -> -0.2338051871
A78: Caja excedente (+) | D78: =D77-D76 -> 7.150684932 | E78: =E77-E76 -> -5.802979668 | F78: =F77-F76 -> -25.27923412 | H78: =H77-H76 -> -36.80265924 | I78: =I77-I76 -> -46.15448169
A79: o crédito necesario (-)

Sheet Anex 1-2 PT (hidden)
E1: Anexo 1. Previsão Conta de resultados. Companhia LoA
A2: Conta de Resultados | E2: Anos anteriores | H2: Previsão
A3: (Milhões de reais) | B3: Hipóteses | D3: 2022 | E3: =D3+1 -> 2023 | F3: =E3+1 -> 2024 | H3: 2025 | I3: =H3+1 -> 2026
A4: Vendas | D4: 100 | E4: 140 | F4: 175 | H4: =F4*(1+H19) -> 210 | I4: =H4*(1+I19) -> 231
A5: CMV | D5: 80 | E5: 113.4 | F5: 143.5 | H5: =H4*(1-H20) -> 174.3 | I5: =I4*(1-I20) -> 194.04
A6: Margem bruta | D6: 20 | E6: 26.6 | F6: 31.5 | H6: =H4-H5 -> 35.7 | I6: =I4-I5 -> 36.96
A7: Salários | D7: 5 | E7: 6.06 | F7: 7.13 | H7: =F7*(1+H22) -> 7.843 | I7: =H7*(1+I22) -> 8.6273
A8: Despesas gerais | D8: 5 | E8: 6.06 | F8: 7.13 | H8: =F8*(1+H22) -> 7.843 | I8: =H8*(1+I22) -> 8.6273
A9: Opex o despesas operacionais | D9: 10 | E9: 12.12 | F9: 14.26 | H9: =H7+H8 -> 15.686 | I9: =I7+I8 -> 17.2546
A10: EBITDA | D10: 10 | E10: 14.48 | F10: 17.24 | H10: =H6-H9 -> 20.014 | I10: =I6-I9 -> 19.7054
A11: Amortização | B11: 0.1 | C11: x AF | D11: 2 | E11: 2 | F11: 2.1 | H11: =$B$11*F68 -> 2.3 | I11: =$B$11*H68 -> 2.37
A12: EBIT ou BAIT | D12: 8 | E12: 12.48 | F12: 15.14 | H12: =H10-H11 -> 17.714 | I12: =I10-I11 -> 17.3354
A13: Despesas financeiras | B13: 0.1 | C13: x Divida | D13: 2 | E13: 2.288327763 | F13: 4.233508094 | H13: =$B$13*F71 -> 3.527923412 | I13: =$B$13*H71 -> 4.180265924
A14: EBT ou BAT | D14: 6 | E14: 10.19167224 | F14: 10.90649191 | H14: =H12-H13 -> 14.18607659 | I14: =I12-I13 -> 13.15513408
A15: Impostos (25%) | B15: 0.25 | D15: 1.5 | E15: 2.547918059 | F15: 2.726622976 | H15: =H14*$B$15 -> 3.546519147 | I15: =I14*$B$15 -> 3.288783519
A16: LL Lucro líquido | D16: 4.5 | E16: 7.643754177 | F16: 8.179868929 | H16: =H14-H15 -> 10.63955744 | I16: =I14-I15 -> 9.866350557
A18: Índices da conta de resultados | H18: Hipóteses
A19: Crescimento das vendas | D19: 0.7 | E19: =E4/D4-1 -> 0.4 | F19: =F4/E4-1 -> 0.25 | H19: 0.2 | I19: 0.1
A20: Margem bruta / vendas | D20: =D6/D4 -> 0.2 | E20: =E6/E4 -> 0.19 | F20: =F6/F4 -> 0.18 | H20: 0.17 | I20: 0.16
A21: Opex / Vendas | D21: =D9/D4 -> 0.1 | E21: =E9/E4 -> 0.08657142857 | F21: =F9/F4 -> 0.08148571429 | H21: =H9/H4 -> 0.0746952381 | I21: =I9/I4 -> 0.0746952381
A22: Aumento de Opex | D22: 0.2 | E22: =E9/D9-1 -> 0.212 | F22: =F9/E9-1 -> 0.1765676568 | H22: 0.1 | I22: 0.1
A23: EBITDA / Vendas | D23: =D10/D4 -> 0.1 | E23: =E10/E4 -> 0.1034285714 | F23: =F10/F4 -> 0.09851428571 | H23: =H10/H4 -> 0.0953047619 | I23: =I10/I4 -> 0.0853047619
A24: ROS, Lucro líquido / vendas | D24: =D16/D4 -> 0.045 | E24: =E16/E4 -> 0.05459824412 | F24: =F16/F4 -> 0.04674210817 | H24: =H16/H4 -> 0.05066455924 | I24: =I16/I4 -> 0.04271147427
A25: ROA, Lucro / ativo total | D25: =D16/D40 -> 0.07707648991 | E25: =E16/E40 -> 0.1113005256 | F25: =F16/F40 -> 0.08859501956 | H25: =H16/H40 -> 0.0993727777 | I25: =I16/I40 -> 0.08489103921
A26: RONA, EBIT / ativo líquido | D26: =D12/D69 -> 0.1467889908 | E26: =E12/E69 -> 0.1982628683 | F26: =F12/F69 -> 0.1768632554 | H26: =H12/H69 -> 0.1795169747 | I26: =I12/I69 -> 0.1611481559
A27: ROE, Lucro líquido / recursos próprios | D27: =D16/D48 -> 0.15 | E27: =E16/E48 -> 0.2215580921 | F27: =F16/F48 -> 0.1940944534 | H27: =H16/H48 -> 0.2301256455 | I27: =I16/I48 -> 0.1913809306
A28: CFO = Lucro líquido + amortização | D28: =D16+D11 -> 6.5 | E28: =E16+E11 -> 9.643754177 | F28: =F16+F11 -> 10.27986893 | H28: =H16+H11 -> 12.93955744 | I28: =I16+I11 -> 12.23635056
A29: Inflação | D29: 0.09 | E29: 0.1 | F29: 0.11 | H29: 0.1 | I29: 0.1
A30: Juros | D30: =D13/D71 -> 0.1 | E30: =E13/E71 -> 0.11 | F30: =F13/F71 -> 0.12 | H30: 0.1 | I30: 0.1
E32: Anexo 2. Previsão de Balanço. Companhia LoA
A33: Ativo
A34: =A3 -> (Milhões de reais) | D34: =D3 -> 2022 | E34: =E3 -> 2023 | F34: =F3 -> 2024 | H34: =H3 -> 2025 | I34: =I3 -> 2026 | J34: En % Vtas
A35: Caixa | D35: =MAX(D50-D36-D37-D39,0) -> 7.150684932 | E35: =MAX(E50-E36-E37-E39,0) -> 0 | F35: =MAX(F50-F36-F37-F39,0) -> 7.105427358e-15 | H35: =MAX(H50-H36-H37-H39,0) -> 7.105427358e-15 | I35: =MAX(I50-I36-I37-I39,0) -> 7.105427358e-15 | J35: ano 2025
A36: Clientes | D36: 24.65753425 | E36: 38.35616438 | F36: 57.53424658 | H36: =H4/365*H57 -> 69.04109589 | I36: =I4/365*I57 -> 75.94520548 | J36: =H36/H$4 -> 0.3287671233
A37: Estoques | D37: 6.575342466 | E37: 9.320547945 | F37: 11.79452055 | H37: =H5/365*H58 -> 14.3260274 | I37: =I5/365*I58 -> 15.94849315 | J37: =H37/H$4 -> 0.06821917808
A38: Ativo corrente, AC | D38: =SUM(D35:D37) -> 38.38356164 | E38: =SUM(E35:E37) -> 47.67671233 | F38: =SUM(F35:F37) -> 69.32876712 | H38: =SUM(H35:H37) -> 83.36712329 | I38: =SUM(I35:I37) -> 91.89369863
A39: Ativo não corrente o fixo, AF | D39: 20 | E39: 21 | F39: 23 | H39: =F39+H53-H11 -> 23.7 | I39: =H39+I53-I11 -> 24.33
A40: Ativo total | D40: =D38+D39 -> 58.38356164 | E40: =E38+E39 -> 68.67671233 | F40: =F38+F39 -> 92.32876712 | H40: =H38+H39 -> 107.0671233 | I40: =I38+I39 -> 116.2236986
A42: Passivo e Patrimônio
A43: Fornecedores | D43: 2.383561644 | E43: 3.182060424 | F43: 3.999286921 | H43: =H52/365*H59 -> 4.844698818 | I43: =I52/365*I59 -> 5.3606155 | J43: =H43/H$4 -> 0.02306999437
A44: Outros credores | D44: 1.5 | E44: 2.547918059 | F44: 2.726622976 | H44: =H15 -> 3.546519147 | I44: =I15 -> 3.288783519 | J44: =H44/H$4 -> 0.01688818641
A45: Dívida curto prazo (Crédito bancário) | D45: =MAX(D76-D77,0) -> 0 | E45: =MAX(E76-E77,0) -> 5.802979668 | F45: =MAX(F76-F77,0) -> 25.27923412 | H45: =MAX(H76-H77,0) -> 36.80265924 | I45: =MAX(I76-I77,0) -> 46.15448169
A46: Passivo corrente | D46: =D43+D44+D45 -> 3.883561644 | E46: =E43+E44+E45 -> 11.53295815 | F46: =F43+F44+F45 -> 32.00514402 | H46: =H43+H44+H45 -> 45.1938772 | I46: =I43+I44+I45 -> 54.80388071
A47: Dívida longo prazo (Empréstimo bancário) | B47: 5 | C47: Pago anual | D47: 20 | E47: 15 | F47: 10 | H47: =F47-$B$47 -> 5 | I47: =H47-B47 -> 0
A48: Patrimônio (Capital próprio o equity) | D48: 30 | E48: 34.5 | F48: 42.14375418 | H48: =F48+F49*(1-H54) -> 46.23368864 | I48: =H48+H49*(1-I54) -> 51.55346736
A49: Lucro do ano | D49: 4.5 | E49: 7.643754177 | F49: 8.179868929 | H49: =H16 -> 10.63955744 | I49: =I16 -> 9.866350557
A50: Total passivo e patrimônio | D50: =D46+D47+D48+D49 -> 58.38356164 | E50: =E46+E47+E48+E49 -> 68.67671233 | F50: =F46+F47+F48+F49 -> 92.32876712 | H50: =H46+H47+H48+H49 -> 107.0671233 | I50: =I46+I47+I48+I49 -> 116.2236986
A52: Compras | D52: 87 | E52: =E5+(E37-D37) -> 116.1452055 | F52: =F5+(F37-E37) -> 145.9739726 | H52: =H5+(H37-F37) -> 176.8315068 | I52: =I5+(I37-H37) -> 195.6624658
A53: Capex o Novo investimento bruto | E53: 3 | F53: 4.1 | H53: 3 | I53: 3
A54: Pay Out o % dividendos | H54: 0.5 | I54: 0.5
A56: Índices do balanço | D56: =D65 -> 2022 | E56: =E65 -> 2023 | F56: =F65 -> 2024
A57: Dias de cobrança | D57: 90 | E57: 100 | F57: 120 | H57: 120 | I57: 120
A58: Dias de estoques | D58: 30 | E58: 30 | F58: 30 | H58: 30 | I58: 30
A59: Dias de pagamento | D59: 10 | E59: 10 | F59: 10 | H59: 10 | I59: 10
A60: NOF / Vendas em % | D60: =D67/D4 -> 0.2734931507 | E60: =E67/E4 -> 0.2996195275 | F60: =F67/F4 -> 0.3577306127 | H60: =H67/H4 -> 0.3570281206 | I60: =I67/I4 -> 0.3603649334
A61: Alavancagem (Passivo / Patrimônio) | D61: =(D46+D47)/D72 -> 0.6922771491 | E61: =(E46+E47)/E72 -> 0.6295822161 | F61: =(F46+F47)/F72 -> 0.8347003142 | H61: =(H46+H47)/H72 -> 0.8825569255 | I61: =(I46+I47)/I72 -> 0.8922833471
A62: Dívida / Ebitda | D62: =D71/D10 -> 2 | E62: =E71/E10 -> 1.436669867 | F62: =F71/F10 -> 2.046359288 | H62: =H71/H10 -> 2.088670892 | I62: =I71/I10 -> 2.34222506
A63: Dívida / Lucro liquido | D63: =D71/D16 -> 4.444444444 | E63: =E71/E16 -> 2.721565763 | F63: =F71/F16 -> 4.312933914 | H63: =H71/H16 -> 3.928984779 | I63: =I71/I16 -> 4.677968964
A65: Balanço curto | D65: =D3 -> 2022 | E65: =E3 -> 2023 | F65: =F3 -> 2024 | H65: =H3 -> 2025 | I65: =I3 -> 2026 | J65: Dif. 2026-24
A66: Caixa excedente | D66: =D35-0 -> 7.150684932 | E66: =E35-E99 -> 0 | F66: =F35-F99 -> 7.105427358e-15 | H66: =H35-H99 -> 7.105427358e-15 | I66: =I35-I99 -> 7.105427358e-15
A67: NOF ou circulante líquido | D67: =D36+D37-D43-D44 -> 27.34931507 | E67: =E36+E37-E43-E44 -> 41.94673385 | F67: =F36+F37-F43-F44 -> 62.60285723 | H67: =H36+H37-H43-H44 -> 74.97590532 | I67: =I36+I37-I43-I44 -> 83.24429961 | J67: =I67-F67 -> 20.64144238
A68: AF ou ativo fixo líquido | D68: =D39 -> 20 | E68: =E39 -> 21 | F68: =F39 -> 23 | H68: =H39 -> 23.7 | I68: =I39 -> 24.33 | J68: =I68-F68 -> 1.33
A69: AL ou ativo líquido | D69: =D66+D67+D68 -> 54.5 | E69: =E66+E67+E68 -> 62.94673385 | F69: =F66+F67+F68 -> 85.60285723 | H69: =H66+H67+H68 -> 98.67590532 | I69: =I66+I67+I68 -> 107.5742996
A71: D ou Dívida (a longo e a curto) | D71: =D45+D47 -> 20 | E71: =E45+E47 -> 20.80297967 | F71: =F45+F47 -> 35.27923412 | H71: =H45+H47 -> 41.80265924 | I71: =I45+I47 -> 46.15448169 | J71: =I71-F71 -> 10.87524757
A72: E, Equity o Patrimônio | D72: =D48+D49 -> 34.5 | E72: =E48+E49 -> 42.14375418 | F72: =F48+F49 -> 50.32362311 | H72: =H48+H49 -> 56.87324608 | I72: =I48+I49 -> 61.41981792 | J72: =I72-F72 -> 11.09619481
A73: Total financiamento | D73: =D71+D72 -> 54.5 | E73: =E71+E72 -> 62.94673385 | F73: =F71+F72 -> 85.60285723 | H73: =H71+H72 -> 98.67590532 | I73: =I71+I72 -> 107.5742996
A75: Extrato do balanço, NOF vs CG | D75: =D65 -> 2022 | E75: =E65 -> 2023 | F75: =F65 -> 2024 | H75: =H65 -> 2025 | I75: =I65 -> 2026
A76: NOF | D76: =D67 -> 27.34931507 | E76: =E67 -> 41.94673385 | F76: =F67 -> 62.60285723 | H76: =H67 -> 74.97590532 | I76: =I67 -> 83.24429961 | J76: =I76-F76 -> 20.64144238
A77: CG | D77: =D47+D48+D49-D39 -> 34.5 | E77: =E47+E48+E49-E39 -> 36.14375418 | F77: =F47+F48+F49-F39 -> 37.32362311 | H77: =H47+H48+H49-H39 -> 38.17324608 | I77: =I47+I48+I49-I39 -> 37.08981792 | J77: =I77-F77 -> -0.2338051871
A78: Caixa excedente (+) | D78: =D77-D76 -> 7.150684932 | E78: =E77-E76 -> -5.802979668 | F78: =F77-F76 -> -25.27923412 | H78: =H77-H76 -> -36.80265924 | I78: =I77-I76 -> -46.15448169
A79: ou crédito necessário (-)

Sheet Questions
B1: Chapter 2. Self-assessment questions
B2: Answer the following questions. Write your answers in column C. T or F (true or false). | H2: 1 | I2: F | J2: 6 | K2: V | L2: 11 | M2: V | N2: 16 | O2: V | P2: 21 | Q2: V | R2: 26 | S2: F | T2: 31 | U2: F | V2: 36 | W2: V
B3: Check your answers by clicking on the 2 with box in the upper left corner; or in the cross with a box above column F. | H3: 2 | I3: V | J3: 7 | K3: F | L3: 12 | M3: F | N3: 17 | O3: V | P3: 22 | Q3: V | R3: 27 | S3: V | T3: 32 | U3: V | V3: 37 | W3: V
B4: Column E will be displayed with the correct answer. If you have less than 30 points, it is recommended to review Chapter 1. | H4: 3 | I4: F | J4: 8 | K4: F | L4: 13 | M4: V | N4: 18 | O4: V | P4: 23 | Q4: F | R4: 28 | S4: V | T4: 33 | U4: F | V4: 38 | W4: V
B5: Correct answer = 1 point. No response = 0 points. Wrong answer = | C5: 0 | H5: 4 | I5: V | J5: 9 | K5: V | L5: 14 | M5: V | N5: 19 | O5: V | P5: 24 | Q5: F | R5: 29 | S5: F | T5: 34 | U5: F | V5: 39 | W5: F
B6: © IESE. E.M. Abascal 2023. Version 26/9/23 | H6: 5 | I6: V | J6: 10 | K6: F | L6: 15 | M6: V | N6: 20 | O6: F | P6: 25 | Q6: v | R6: 30 | S6: V | T6: 35 | U6: V | V6: 40 | W6: F
C7: Answer | D7: Your | E7: Correct
B8: QUESTIONS | C8: T or F | D8: Points | E8: Answer | H8: English
A9: 1 | B9: In the P&L forecast, the variables that usually weigh the most are sales, % margin and opex growth. | D9: =IF(C9="",0,IF(C9=E9,1,$C$5)) -> 0 | E9: T
A10: =A9+1 -> 2 | B10: If the margin% and the opex% do not vary, the EBITDA% does not change either. | D10: =IF(C10="",0,IF(C10=E10,1,$C$5)) -> 0 | E10: T | H10: 1 | I10: F | J10: 6 | K10: T | L10: 11 | M10: T | N10: 16 | O10: T | P10: 21 | Q10: T | R10: 26 | S10: F | T10: 31 | U10: F | V10: 36 | W10: T
A11: =A10+1 -> 3 | B11: If the margin% and the opex% do not vary, the EBITDA in euros does not change either. | D11: 0 | E11: F | H11: 2 | I11: T | J11: 7 | K11: F | L11: 12 | M11: F | N11: 17 | O11: T | P11: 22 | Q11: T | R11: 27 | S11: T | T11: 32 | U11: T | V11: 37 | W11: T
A12: 4 | B12: In service companies, the depreciation of fixed assets is usually an important expense. | D12: 0 | E12: F | H12: 3 | I12: F | J12: 8 | K12: F | L12: 13 | M12: T | N12: 18 | O12: T | P12: 23 | Q12: F | R12: 28 | S12: T | T12: 33 | U12: F | V12: 38 | W12: T
A13: 5 | B13: In most companies, financial expense is very relevant and is what causes a company to go into losses. | D13: 0 | E13: F | H13: 4 | I13: T | J13: 9 | K13: T | L13: 14 | M13: T | N13: 19 | O13: T | P13: 24 | Q13: F | R13: 29 | S13: F | T13: 34 | U13: F | V13: 39 | W13: F
A14: 6 | B14: NFOs are always a percentage of sales. | D14: 0 | E14: F | H14: 5 | I14: T | J14: 10 | K14: F | L14: 15 | M14: T | N14: 20 | O14: F | P14: 25 | Q14: T | R14: 30 | S14: T | T14: 35 | U14: T | V14: 40 | W14: F
A15: 7 | B15: If sales are uniform (the same every month) the NFO is a % of the annual sale. | D15: 0 | E15: T
A16: 8 | B16: Uniform sales. Clients to 90 days. Customers = 25% of annual sales. | D16: 0 | E16: T
A17: 9 | B17: Uniform sales. Stocks at 90 days. Stock = 25% of annual sales. | D17: 0 | E17: F
A18: 10 | B18: The figure in suppliers depends on purchases and payment days. | D18: 0 | E18: T
A19: 11 | B19: If the company does not grow much, it is reasonable to assume that purchases = CMV. | D19: 0 | E19: T
A20: 12 | B20: The % of suppliers on sales depends on the quantity you buy. | D20: 0 | E20: F
A21: 13 | B21: Commercial enterprise. Uniform sales. The % of suppliers on sales depends on the days of payment and the margin on sales. | D21: 0 | E21: T
A22: 14 | B22: NFO% = customers% + stock% − suppliers% − other creditors%. | D22: 0 | E22: T
A23: 15 | B23: If you do not invest anything (capex = 0) the FA remains constant. | D23: 0 | E23: F
A24: 16 | B24: Sales grow. NFO% constant. Therefore, NFO in euros is also constant. | D24: 0 | E24: F
A25: 17 | B25: If capex < depreciation, the net FA goes down. | D25: 0 | E25: T
A26: 18 | B26: A long-term loan is usually repaid in equal installments (each year or quarter or month). | D26: 0 | E26: T
A27: 19 | B27: We take out long-term loans to meet our urgent financing needs. | D27: 0 | E27: F
A28: 20 | B28: We use a line of credit to balance our financing needs. | D28: 0 | E28: T
A29: 21 | B29: The balance forecast is always balanced with cash or credit. | D29: 0 | E29: T
A30: 22 | B30: If the NA > Financing, the difference is in Cash. | D30: 0 | E30: F
A31: 23 | B31: Uniform sales = €100/month. You collect in 45 days. In customers you have €45. | D31: =IF(C31="",0,IF(C31=E31,1,$C$5)) -> 0 | E31: F
A32: =A31+1 -> 24 | B32: Monthly COGS = €80/month. Stock policy, 60 days. In stock you have €160. | D32: =IF(C32="",0,IF(C32=E32,1,$C$5)) -> 0 | E32: T
A33: 25 | B33: Monthly purchase = €80. You pay in 15 days. In suppliers you have €40. | D33: 0 | E33: T
A34: 26 | B34: Engineering company with very long projects. Usually they will have a lot of work in progress and a lot of customer accounts. | D34: 0 | E34: T
A35: 27 | B35: If you pay your suppliers late, collect in cash and barely have any stock, your NFO can be negative. | D35: 0 | E35: T
A36: 28 | B36: The monthly purchase increases by 50%, you maintain the payment days, the supplier's financing will increase by 50%. | D36: 0 | E36: T
A37: 29 | B37: Once you have made a large investment in AM it is reasonable to assume that you will not have opex in the next 5 or 10 years. | D37: 0 | E37: F
A38: 30 | B38: To keep the FA in good condition it is reasonable to assume that you will need capex = depreciation. | D38: 0 | E38: T
A39: 31 | B39: Equity increases with the year's profits and decreases with the dividends paid. | D39: 0 | E39: T
A40: 32 | B40: Companies that need a lot of investment (capex) often also pay a lot of dividends. | D40: 0 | E40: F
A41: 33 | B41: A shipyard has a long production process and therefore a lot of inventory of work in progress. | D41: 0 | E41: T
A42: 34 | B42: A shipyard asks its customers for advances and these advances increase the NFO. | D42: 0 | E42: F
A43: 35 | B43: Equity year 2025 = €100. Profit year 2026 = €10. Equity year 2026 = €110. It follows that the company has not paid dividends. | D43: 0 | E43: T
A44: 36 | B44: Sales quarter 3 = €100. Sales quarter 4 = €600. In December we have €300 in receivables. The company collects within 45 days. | D44: 0 | E44: T
A45: 37 | B45: COGS quarter 3 = €100. COGS quarter 4 = €600. In December we have €200 in inventory. The company has 30 days of stock. | D45: 0 | E45: T
A46: 38 | B46: NFO = €100. WC = €70. We will necessarily have €30 in credit. | D46: 0 | E46: T
A47: 39 | B47: If NFO% does not change and sales grow by 30%, NFO€ grows by 30%. | D47: 0 | E47: T
A48: 40 | B48: The maximum growth without extra credit depends only on the ROS. | D48: 0 | E48: F
B50: TOTAL CALIFICACION OBTENIDA | D50: =SUM(D9:D48) -> 0
B51: Máxima calificación posible | D51: 40

Sheet Preguntas (hidden)
B1: Cap 2. Prguntas de autoevaluación
B2: Contesta el siguiente cuestionario. Escribe tus respuestas en la columna C. V o F (verdadero o falso). | H2: 1 | I2: V | J2: 6 | K2: F | L2: 11 | M2: V | N2: 16 | O2: F | P2: 21 | Q2: V | R2: 26 | S2: V | T2: 31 | U2: V | V2: 36 | W2: V
B3: Comprueba tus respuestas pinchando en el 2 con recuadro de la esquina superior izquierda; o en la cruz con recuadro encima de la columna F. | H3: 2 | I3: V | J3: 7 | K3: V | L3: 12 | M3: F | N3: 17 | O3: V | P3: 22 | Q3: F | R3: 27 | S3: V | T3: 32 | U3: F | V3: 37 | W3: V
B4: Se desplegará la columna E con la respuesta correcta. Si tienes menos de 30 puntos se recomienda repasar el Cap 1. | H4: 3 | I4: F | J4: 8 | K4: V | L4: 13 | M4: V | N4: 18 | O4: V | P4: 23 | Q4: F | R4: 28 | S4: V | T4: 33 | U4: V | V4: 38 | W4: V
B5: Respuesta correcta = 1 punto. No respuesta = 0 puntos. Respuesta incorrecta = | C5: 0 | H5: 4 | I5: F | J5: 9 | K5: F | L5: 14 | M5: V | N5: 19 | O5: F | P5: 24 | Q5: V | R5: 29 | S5: F | T5: 34 | U5: F | V5: 39 | W5: V
B6: © IESE. E.M. Abascal 2023. Versión 26/9/23 | H6: 5 | I6: F | J6: 10 | K6: V | L6: 15 | M6: F | N6: 20 | O6: V | P6: 25 | Q6: V | R6: 30 | S6: V | T6: 35 | U6: V | V6: 40 | W6: F
C7: Respuestas | D7: Calificación | E7: Respuesta
B8: PREGUNTAS | C8: V o F | D8: Obtenida | E8: Correcta
A9: 1 | B9: En la previsión de PyG las variables que más pesas habitualmente son ventas, margen% y crecimiento de opex. | D9: =IF(C9="",0,IF(C9=E9,1,$C$5)) -> 0 | E9: V | H9: 1 | I9: V | J9: T
A10: =A9+1 -> 2 | B10: Si el margen% y el opex% no varían, el EBITDA% tampoco varía. | D10: =IF(C10="",0,IF(C10=E10,1,$C$5)) -> 0 | E10: V | H10: 2 | I10: V | J10: T
A11: =A10+1 -> 3 | B11: Si el margen% y el opex% no varían, el EBITDA en euros tampoco varía. | D11: 0 | E11: F | H11: 3 | I11: F | J11: F
A12: 4 | B12: En empresas de servicios la amortización del activo fijo suele ser un gasto importante. | D12: 0 | E12: F | H12: 4 | I12: F | J12: F
A13: 5 | B13: En la mayoría de las empresas el gasto financiero es muy relevante y es lo que hace que una empresa entre en pérdidas. | D13: 0 | E13: F | H13: 5 | I13: F | J13: F
A14: 6 | B14: Las NOF son siempre un porcentaje de ventas. | D14: 0 | E14: F | H14: 6 | I14: F | J14: F
A15: 7 | B15: Si las ventas son uniformes (iguales cada mes) las NOF son un % de la venta anual. | D15: 0 | E15: V | H15: 7 | I15: V | J15: T
A16: 8 | B16: Ventas uniformes. Clientes a 90 días. Clientes = 25% de las ventas anuales. | D16: 0 | E16: V | H16: 8 | I16: V | J16: T
A17: 9 | B17: Ventas uniformes. Existencias a 90 días. Existencias = 25% de las ventas anuales. | D17: 0 | E17: F | H17: 9 | I17: F | J17: F
A18: 10 | B18: La cifra en proveedores depende de compras y de días de pago. | D18: 0 | E18: V | H18: 10 | I18: V | J18: T
A19: 11 | B19: Si la empresa no crece mucho es razonable asumir que compras = CMV. | D19: 0 | E19: V | H19: 11 | I19: V | J19: T
A20: 12 | B20: El % de proveedores sobre ventas depende de la cantidad que compres. | D20: 0 | E20: F | H20: 12 | I20: F | J20: F
A21: 13 | B21: Empresa comercial. Ventas uniformes. El % de proveedores sobre ventas depende de los días de pago y del margen sobre ventas. | D21: 0 | E21: V | H21: 13 | I21: V | J21: T
A22: 14 | B22: NOF% = clientes% + existencias% − proveedores% − otros acreedores%. | D22: 0 | E22: V | H22: 14 | I22: V | J22: T
A23: 15 | B23: Si no inviertes nada (capex = 0) el AF permanece constante. | D23: 0 | E23: F | H23: 15 | I23: F | J23: F
A24: 16 | B24: Ventas crecen. NOF% constante. Por tanto, NOF en euros también constante. | D24: 0 | E24: F | H24: 16 | I24: F | J24: F
A25: 17 | B25: Si capex < amortización, el AF neto baja. | D25: 0 | E25: V | H25: 17 | I25: V | J25: T
A26: 18 | B26: Un préstamo a largo habitualmente se amortiza en cuotas iguales (cada año o trimestre o mes). | D26: 0 | E26: V | H26: 18 | I26: V | J26: T
A27: 19 | B27: Pedimos préstamos a largo para cuadrar nuestras necesidades de financiación urgentes. | D27: 0 | E27: F | H27: 19 | I27: F | J27: F
A28: 20 | B28: Usamos línea de crédito para cuadrar nuestras necesidades de financiación. | D28: 0 | E28: V | H28: 20 | I28: V | J28: T
A29: 21 | B29: La previsión de balance se cuadra siempre por caja o crédito. | D29: 0 | E29: V | H29: 21 | I29: V | J29: T
A30: 22 | B30: Si el AN > Financiación, la diferencia está en Caja. | D30: 0 | E30: F | H30: 22 | I30: F | J30: F
A31: 23 | B31: Ventas uniformes = 100€/mes. Cobras a 45 días. En clientes tienes 45€. | D31: 0 | E31: F | H31: 23 | I31: F | J31: F
A32: 24 | B32: CMV mensual = 80€/mes. Política de existencias, 60 días. En existencias tienes 160€. | D32: 0 | E32: V | H32: 24 | I32: V | J32: T
A33: 25 | B33: Compra mensual = 80€. Pagas a 15 días. En provedores tienes 40€. | D33: 0 | E33: V | H33: 25 | I33: V | J33: T
A34: 26 | B34: Empresa de ingeniería con proyectos muy largos. Lo normal es que tenga mucha existencia de producto en curso y mucha cuenta de clientes. | D34: 0 | E34: V | H34: 26 | I34: V | J34: T
A35: 27 | B35: Si pagas tarde a tus proveedores, cobas al contado y apenas tienes existencias tus NOF pueden ser negativas. | D35: 0 | E35: V | H35: 27 | I35: V | J35: T
A36: 28 | B36: La compra mensual aumenta un 50%, mantienes los días de pago, la financiación del proveedor aumentará un 50%. | D36: 0 | E36: V | H36: 28 | I36: V | J36: T
A37: 29 | B37: Una vez que has hecho una gran inversión en AF es razonable asumir que no tendrás opex en los próximos 5 o 10 años. | D37: 0 | E37: F | H37: 29 | I37: F | J37: F
A38: 30 | B38: Para mantener el AF en buen estado es razonable asumir que necesitarás un capex = amortización. | D38: 0 | E38: V | H38: 30 | I38: V | J38: T
A39: 31 | B39: El equity aumenta con los beneficios del año y baja con los dividendos pagados. | D39: 0 | E39: V | H39: 31 | I39: V | J39: T
A40: 32 | B40: Las empresas que necesitan mucha inversión (capex) es frecuente que paguen también mucho dividendo. | D40: 0 | E40: F | H40: 32 | I40: F | J40: F
A41: 33 | B41: Un astillero tiene un largo proceso de producción y por tanto mucha existencia de producto en curso. | D41: 0 | E41: V | H41: 33 | I41: V | J41: T
A42: 34 | B42: Un astillero pide anticipos a sus clientes y estos anticipos aumentan las NOF. | D42: 0 | E42: F | H42: 34 | I42: F | J42: F
A43: 35 | B43: Patrimonio año 2025 = 100€. Beneficio año 2026 = 10€. Patrimonio año 2026 = 110€. Se deduce que la compañía no ha pagado dividendos. | D43: 0 | E43: V | H43: 35 | I43: V | J43: T
A44: 36 | B44: Ventas trimestre 3 = 100€. Ventas trimestre 4 = 600€. En diciembre tenemos 300€ en clientes. La compañía cobra a 45 días. | D44: 0 | E44: V | H44: 36 | I44: V | J44: T
A45: 37 | B45: CMV trimestre 3 = 100€. CMV trimestre 4 = 600€. En diciembre tenemos 200€ en existencias. La compañía tienes 30 días de existencias. | D45: 0 | E45: V | H45: 37 | I45: V | J45: T
A46: 38 | B46: NOF = 100€. FM = 70€. Necesariamente tendremos 30€ en crédito. | D46: 0 | E46: V | H46: 38 | I46: V | J46: T
A47: 39 | B47: Si NOF% no cambia y ventas crecen un 30%, NOF€ crece un 30%. | D47: 0 | E47: V | H47: 39 | I47: V | J47: T
A48: 40 | B48: El crecimiento posible sin crédito extra depende sólo del ROS. | D48: 0 | E48: F | H48: 40 | I48: F | J48: F
B50: TOTAL CALIFICACION OBTENIDA | D50: =SUM(D9:D48) -> 0
B51: Máxima calificación posible | D51: 40

Sheet Perguntas (hidden)
B1: Cap 2. Prguntas de autoevaluación
B2: Contesta el siguiente cuestionario. Escribe tus respuestas en la columna C. V o F (verdadero o falso). | H2: 1 | I2: V | J2: 6 | K2: F | L2: 11 | M2: V | N2: 16 | O2: F | P2: 21 | Q2: V | R2: 26 | S2: V | T2: 31 | U2: V | V2: 36 | W2: V
B3: Comprueba tus respuestas pinchando en el 2 con recuadro de la esquina superior izquierda; o en la cruz con recuadro encima de la columna F. | H3: 2 | I3: V | J3: 7 | K3: V | L3: 12 | M3: F | N3: 17 | O3: V | P3: 22 | Q3: F | R3: 27 | S3: V | T3: 32 | U3: F | V3: 37 | W3: V
B4: Se desplegará la columna E con la respuesta correcta. Si tienes menos de 30 puntos se recomienda repasar el Cap 1. | H4: 3 | I4: F | J4: 8 | K4: V | L4: 13 | M4: V | N4: 18 | O4: V | P4: 23 | Q4: F | R4: 28 | S4: V | T4: 33 | U4: V | V4: 38 | W4: V
B5: Respuesta correcta = 1 punto. No respuesta = 0 puntos. Respuesta incorrecta = | C5: 0 | H5: 4 | I5: F | J5: 9 | K5: F | L5: 14 | M5: V | N5: 19 | O5: F | P5: 24 | Q5: V | R5: 29 | S5: F | T5: 34 | U5: F | V5: 39 | W5: V
B6: © IESE. E.M. Abascal 2023. Versión 26/9/23 | H6: 5 | I6: F | J6: 10 | K6: V | L6: 15 | M6: F | N6: 20 | O6: V | P6: 25 | Q6: V | R6: 30 | S6: V | T6: 35 | U6: V | V6: 40 | W6: F
C7: Respuestas | D7: Calificación | E7: Respuesta
B8: PREGUNTAS | C8: V o F | D8: Obtenida | E8: Correcta
A9: 1 | B9: En la previsión de PyG las variables que más pesas habitualmente son ventas, margen% y crecimiento de opex. | D9: =IF(C9="",0,IF(C9=E9,1,$C$5)) -> 0 | E9: V | H9: 1 | I9: V | J9: T
A10: =A9+1 -> 2 | B10: Si el margen% y el opex% no varían, el EBITDA% tampoco varía. | D10: =IF(C10="",0,IF(C10=E10,1,$C$5)) -> 0 | E10: V | H10: 2 | I10: V | J10: T
A11: =A10+1 -> 3 | B11: Si el margen% y el opex% no varían, el EBITDA en euros tampoco varía. | D11: 0 | E11: F | H11: 3 | I11: F | J11: F
A12: 4 | B12: En empresas de servicios la amortización del activo fijo suele ser un gasto importante. | D12: 0 | E12: F | H12: 4 | I12: F | J12: F
A13: 5 | B13: En la mayoría de las empresas el gasto financiero es muy relevante y es lo que hace que una empresa entre en pérdidas. | D13: 0 | E13: F | H13: 5 | I13: F | J13: F
A14: 6 | B14: Las NOF son siempre un porcentaje de ventas. | D14: 0 | E14: F | H14: 6 | I14: F | J14: F
A15: 7 | B15: Si las ventas son uniformes (iguales cada mes) las NOF son un % de la venta anual. | D15: 0 | E15: V | H15: 7 | I15: V | J15: T
A16: 8 | B16: Ventas uniformes. Clientes a 90 días. Clientes = 25% de las ventas anuales. | D16: 0 | E16: V | H16: 8 | I16: V | J16: T
A17: 9 | B17: Ventas uniformes. Existencias a 90 días. Existencias = 25% de las ventas anuales. | D17: 0 | E17: F | H17: 9 | I17: F | J17: F
A18: 10 | B18: La cifra en proveedores depende de compras y de días de pago. | D18: 0 | E18: V | H18: 10 | I18: V | J18: T
A19: 11 | B19: Si la empresa no crece mucho es razonable asumir que compras = CMV. | D19: 0 | E19: V | H19: 11 | I19: V | J19: T
A20: 12 | B20: El % de proveedores sobre ventas depende de la cantidad que compres. | D20: 0 | E20: F | H20: 12 | I20: F | J20: F
A21: 13 | B21: Empresa comercial. Ventas uniformes. El % de proveedores sobre ventas depende de los días de pago y del margen sobre ventas. | D21: 0 | E21: V | H21: 13 | I21: V | J21: T
A22: 14 | B22: NOF% = clientes% + existencias% − proveedores% − otros acreedores%. | D22: 0 | E22: V | H22: 14 | I22: V | J22: T
A23: 15 | B23: Si no inviertes nada (capex = 0) el AF permanece constante. | D23: 0 | E23: F | H23: 15 | I23: F | J23: F
A24: 16 | B24: Ventas crecen. NOF% constante. Por tanto, NOF en euros también constante. | D24: 0 | E24: F | H24: 16 | I24: F | J24: F
A25: 17 | B25: Si capex < amortización, el AF neto baja. | D25: 0 | E25: V | H25: 17 | I25: V | J25: T
A26: 18 | B26: Un préstamo a largo habitualmente se amortiza en cuotas iguales (cada año o trimestre o mes). | D26: 0 | E26: V | H26: 18 | I26: V | J26: T
A27: 19 | B27: Pedimos préstamos a largo para cuadrar nuestras necesidades de financiación urgentes. | D27: 0 | E27: F | H27: 19 | I27: F | J27: F
A28: 20 | B28: Usamos línea de crédito para cuadrar nuestras necesidades de financiación. | D28: 0 | E28: V | H28: 20 | I28: V | J28: T
A29: 21 | B29: La previsión de balance se cuadra siempre por caja o crédito. | D29: 0 | E29: V | H29: 21 | I29: V | J29: T
A30: 22 | B30: Si el AN > Financiación, la diferencia está en Caja. | D30: 0 | E30: F | H30: 22 | I30: F | J30: F
A31: 23 | B31: Ventas uniformes = 100€/mes. Cobras a 45 días. En clientes tienes 45€. | D31: 0 | E31: F | H31: 23 | I31: F | J31: F
A32: 24 | B32: CMV mensual = 80€/mes. Política de existencias, 60 días. En existencias tienes 160€. | D32: 0 | E32: V | H32: 24 | I32: V | J32: T
A33: 25 | B33: Compra mensual = 80€. Pagas a 15 días. En provedores tienes 40€. | D33: 0 | E33: V | H33: 25 | I33: V | J33: T
A34: 26 | B34: Empresa de ingeniería con proyectos muy largos. Lo normal es que tenga mucha existencia de producto en curso y mucha cuenta de clientes. | D34: 0 | E34: V | H34: 26 | I34: V | J34: T
A35: 27 | B35: Si pagas tarde a tus proveedores, cobas al contado y apenas tienes existencias tus NOF pueden ser negativas. | D35: 0 | E35: V | H35: 27 | I35: V | J35: T
A36: 28 | B36: La compra mensual aumenta un 50%, mantienes los días de pago, la financiación del proveedor aumentará un 50%. | D36: 0 | E36: V | H36: 28 | I36: V | J36: T
A37: 29 | B37: Una vez que has hecho una gran inversión en AF es razonable asumir que no tendrás opex en los próximos 5 o 10 años. | D37: 0 | E37: F | H37: 29 | I37: F | J37: F
A38: 30 | B38: Para mantener el AF en buen estado es razonable asumir que necesitarás un capex = amortización. | D38: 0 | E38: V | H38: 30 | I38: V | J38: T
A39: 31 | B39: El equity aumenta con los beneficios del año y baja con los dividendos pagados. | D39: 0 | E39: V | H39: 31 | I39: V | J39: T
A40: 32 | B40: Las empresas que necesitan mucha inversión (capex) es frecuente que paguen también mucho dividendo. | D40: 0 | E40: F | H40: 32 | I40: F | J40: F
A41: 33 | B41: Un astillero tiene un largo proceso de producción y por tanto mucha existencia de producto en curso. | D41: 0 | E41: V | H41: 33 | I41: V | J41: T
A42: 34 | B42: Un astillero pide anticipos a sus clientes y estos anticipos aumentan las NOF. | D42: 0 | E42: F | H42: 34 | I42: F | J42: F
A43: 35 | B43: Patrimonio año 2025 = 100€. Beneficio año 2026 = 10€. Patrimonio año 2026 = 110€. Se deduce que la compañía no ha pagado dividendos. | D43: 0 | E43: V | H43: 35 | I43: V | J43: T
A44: 36 | B44: Ventas trimestre 3 = 100€. Ventas trimestre 4 = 600€. En diciembre tenemos 300€ en clientes. La compañía cobra a 45 días. | D44: 0 | E44: V | H44: 36 | I44: V | J44: T
A45: 37 | B45: CMV trimestre 3 = 100€. CMV trimestre 4 = 600€. En diciembre tenemos 200€ en existencias. La compañía tienes 30 días de existencias. | D45: 0 | E45: V | H45: 37 | I45: V | J45: T
A46: 38 | B46: NOF = 100€. FM = 70€. Necesariamente tendremos 30€ en crédito. | D46: 0 | E46: V | H46: 38 | I46: V | J46: T
A47: 39 | B47: Si NOF% no cambia y ventas crecen un 30%, NOF€ crece un 30%. | D47: 0 | E47: V | H47: 39 | I47: V | J47: T
A48: 40 | B48: El crecimiento posible sin crédito extra depende sólo del ROS. | D48: 0 | E48: F | H48: 40 | I48: F | J48: F
B50: TOTAL CALIFICACION OBTENIDA | D50: =SUM(D9:D48) -> 0
B51: Máxima calificación posible | D51: 40

Sheet Exh3 DONE
A1: Profit and Loss Statement | H1: Forecast
A2: (million of Euros) | B2: 2019 | C2: =B2+1 -> 2020 | D2: =C2+1 -> 2021 | H2: =D2+1 -> 2022 | I2: =H2+1 -> 2023
A3: Sales | B3: 87000 | C3: 84016 | D3: 74233 | H3: =D3*(1+H19) -> 77944.65 | I3: =H3*(1+I19) -> 81841.8825 | K3: =H3*1.05 -> 81841.8825
A4: COGS | B4: 63895 | C4: 60810 | D4: 53350 | H4: =H3-H5 -> 56120.148 | I4: =I3-I5 -> 58926.1554
A5: Gross Margin | B5: =B3-B4 -> 23105 | C5: =C3-C4 -> 23206 | D5: =D3-D4 -> 20883 | H5: =H3*H20 -> 21824.502 | I5: =I3*I20 -> 22915.7271
A6: Marketing, Selling and Administrative Expenses | B6: =16640-6264 -> 10376 | C6: =15455-4126 -> 11329 | D6: =13534-3334 -> 10200
A7: Other Operating Expenses | B7: 6782 | C7: 5819 | D7: =5067 -> 5067
A8: Opex | B8: =B6+B7 -> 17158 | C8: =C6+C7 -> 17148 | D8: =D6+D7 -> 15267 | H8: =D8*(1+H22) -> 15267 | I8: =H8*(1+I22) -> 15267
A9: EBITDA | B9: =B5-B8 -> 5947 | C9: =C5-C8 -> 6058 | D9: =D5-D8 -> 5616 | H9: =H5-H8 -> 6557.502 | I9: =I5-I8 -> 7648.7271
A10: Depreciation | B10: 6264 | C10: 4126 | D10: 3334 | H10: =D10 -> 3334 | I10: =H10 -> 3334
A11: EBIT | B11: =B9-B10 -> -317 | C11: =C9-C10 -> 1932 | D11: =D9-D10 -> 2282 | H11: =H9-H10 -> 3223.502 | I11: =I9-I10 -> 4314.7271
A12: Financial Income / Expense | B12: =2762+49+173-32+43 -> 2995 | C12: =1321-114+18+94+224 -> 1543 | D12: =642+142+61+31+214 -> 1090 | H12: 1500 | I12: 1500
A13: EBT | B13: =B11+B12 -> 2678 | C13: =C11+C12 -> 3475 | D13: =D11+D12 -> 3372 | H13: =H11+H12 -> 4723.502 | I13: =I11+I12 -> 5814.7271
A14: Taxes | B14: 781 | C14: 849 | D14: 867 | H14: =0.25*H13 -> 1180.8755 | I14: =0.25*I13 -> 1453.681775
A15: Minorities | B15: 191 | C15: -29 | D15: -60
A16: Net Income | B16: =B13-B14+B15 -> 2088 | C16: =C13-C14+C15 -> 2597 | D16: =D13-D14+D15 -> 2445 | H16: =H13-H14 -> 3542.6265 | I16: =I13-I14 -> 4361.045325
A18: P&L Ratios (Profitability Ratios) | I18: Hypothesis for the Forecast
A19: Growth of Sales | B19: na | C19: =C3/B3-1 -> -0.03429885057 | D19: =D3/C3-1 -> -0.1164421063 | H19: 0.05 | I19: 0.05
A20: Gross Margin / Sales | B20: =B5/B3 -> 0.2655747126 | C20: =C5/C3 -> 0.2762092935 | D20: =D5/D3 -> 0.2813169345 | H20: 0.28 | I20: 0.28
A21: Opex / Sales | B21: =B8/B3 -> 0.1972183908 | C21: =C8/C3 -> 0.2041039802 | D21: =D8/D3 -> 0.2056632495 | H21: =H8/H3 -> 0.1958697614 | I21: =I8/I3 -> 0.1865426299
A22: Increase of Opex | B22: na | C22: =C8/B8-1 -> -0.0005828185103 | D22: =D8/C8-1 -> -0.1096920924 | H22: 0 | I22: 0
A23: EBITDA / Sales | B23: =B9/B3 -> 0.06835632184 | C23: =C9/C3 -> 0.07210531327 | D23: =D9/D3 -> 0.07565368502 | H23: =H9/H3 -> 0.08413023857 | I23: =I9/I3 -> 0.09345737007
A24: ROS, Return on Sales | B24: =B16/B3 -> 0.024 | C24: =C16/C3 -> 0.0309107789 | D24: =D16/D3 -> 0.03293683402 | H24: =H16/H3 -> 0.04545054086 | I24: =I16/I3 -> 0.05328622939
A25: ROE, Return on Equity | B25: =B16/B44 -> 0.08110627719 | C25: =C16/C44 -> 0.1209876543 | D25: =D16/D44 -> 0.1116234478 | H25: =H16/D58 -> 0.1454937164 | I25: =I16/H58 -> 0.1652435224
A26: RONA, Return on Net Assets | B26: =B11/B55 -> -0.004034824224 | C26: =C11/C55 -> 0.02815136458 | D26: =D11/D55 -> 0.03339626231 | H26: =H11/H55 -> 0.04636868177 | I26: =I11/I55 -> 0.061072601
A27: CFO, Cash Flow from Operations | B27: =B16+B10 -> 8352 | C27: =C16+C10 -> 6723 | D27: =D16+D10 -> 5779 | H27: =H16+H10 -> 6876.6265 | I27: =I16+I10 -> 7695.045325
A30: Assets (million Euros) | B30: =B2 -> 2019 | C30: =C2 -> 2020 | D30: =D2 -> 2021 | F30: Diff. 2019-21
A31: Cash | B31: =7802+791 -> 8593 | C31: =11196+399 -> 11595 | D31: =12149+650 -> 12799 | F31: =D31-B31 -> 4206
A32: Receivables | B32: =17734+1113+10167 -> 29014 | C32: =15230+1212+5353 -> 21795 | D32: 20324 | F32: =D32-B32 -> -8690 | K32: 20324
A33: Inventory | B33: 13406 | C33: 10672 | D33: 10366 | F33: =D33-B33 -> -3040 | K33: 10366
A34: Current Assets | B34: =SUM(B31:B33) -> 51013 | C34: =SUM(C31:C33) -> 44062 | D34: =SUM(D31:D33) -> 43489
A35: Fixed Assets Net | B35: =90118-51013 -> 39105 | C35: =77939-44062 -> 33877 | D35: =77605-43489 -> 34116 | F35: =D35-B35 -> -4989
A36: Total Assets | B36: =B34+B35 -> 90118 | C36: =C34+C35 -> 77939 | D36: =D34+D35 -> 77605
A38: Liabilities + Equity
A39: Payables | B39: 10798 | C39: 8649 | D39: 8404 | F39: =D39-B39 -> -2394 | K39: 8404
A40: Other Liabilities | B40: 754 | C40: 661 | D40: 870 | F40: =D40-B40 -> 116
A41: Bank Credit | B41: =2637+10864+19471 -> 32972 | C41: =2103+9608+13691 -> 25402 | D41: =1745+8884+12125 -> 22754 | F41: =D41-B41 -> -10218
A42: Current Liabilities | B42: =B39+B40+B41 -> 44524 | C42: =C39+C40+C41 -> 34712 | D42: =D39+D40+D41 -> 32028
A43: Loan | B43: =9973+4721+111+2957 -> 17762 | C43: =10243+5326+195+3401 -> 19165 | D43: =11433+5843+534+3418 -> 21228 | F43: =D43-B43 -> 3466
A44: Equity + Reserves | B44: =23812+4020-2088 -> 25744 | C44: =23521+541-2597 -> 21465 | D44: =23715-2445+634 -> 21904 | F44: =D44-B44 -> -3840
A45: Net Income of the year | B45: =B16 -> 2088 | C45: =C16 -> 2597 | D45: =D16 -> 2445 | F45: =D45-B45 -> 357
A46: Total Liab.+ Equity | B46: =B42+B43+B44+B45 -> 90118 | C46: =C42+C43+C44+C45 -> 77939 | D46: =D42+D43+D44+D45 -> 77605
A48: Purchases | B48: =B4 -> 63895 | C48: =C4+(C33-B33) -> 58076 | D48: =D4+(D33-C33) -> 53044
A49: New Investments Gross | C49: =C35-B35+C10 -> -1102 | D49: =D35-C35+D10 -> 3573 | F49: Variation Assets Net + Depreciation
H50: Forecast
A51: Short Balance Sheet | B51: =B30 -> 2019 | C51: 2020 | D51: 2021 | F51: =F30 -> Diff. 2019-21 | H51: =D30+1 -> 2022 | I51: =H51+1 -> 2023
A52: Cash Surplus | B52: 8593 | C52: 11595 | D52: 12799 | F52: =D52-B52 -> 4206 | H52: =D52 -> 12799 | I52: =H52 -> 12799
A53: NFO or Current Assets Net | B53: =B32+B33-B39-B40 -> 30868 | C53: =C32+C33-C39-C40 -> 23157 | D53: =D32+D33-D39-D40 -> 21416 | F53: =D53-B53 -> -9452 | H53: =H72*H3 -> 22603.9485 | I53: =I72*I3 -> 23734.14593
A54: FA or Fixed Assets Net | B54: =B35 -> 39105 | C54: =C35 -> 33877 | D54: =D35 -> 34116 | F54: =D54-B54 -> -4989 | H54: =D54 -> 34116 | I54: =H54 -> 34116
A55: NA Net Assets | B55: =B52+B53+B54 -> 78566 | C55: =C52+C53+C54 -> 68629 | D55: =D52+D53+D54 -> 68331 | H55: =H52+H53+H54 -> 69518.9485 | I55: =I52+I53+I54 -> 70649.14593
A57: Debt | B57: =B41+B43 -> 50734 | C57: =C41+C43 -> 44567 | D57: =D41+D43 -> 43982 | F57: =D57-B57 -> -6752 | H57: =H55-H58 -> 43127.322 | I57: =I55-I58 -> 41396.4741
A58: Equity | B58: =B44+B45 -> 27832 | C58: =C44+C45 -> 24062 | D58: =D44+D45 -> 24349 | F58: =D58-B58 -> -3483 | H58: =D58-1500+H16 -> 26391.6265 | I58: =H58-1500+I16 -> 29252.67183
A59: Total Financing | B59: =B57+B58 -> 78566 | C59: =C57+C58 -> 68629 | D59: =D57+D58 -> 68331 | H59: =H57+H58 -> 69518.9485 | I59: =I57+I58 -> 70649.14593
A61: Shortest Balance Sheet version - used in Operational Finance
A62: NFO | B62: =B53 -> 30868 | C62: =C53 -> 23157 | D62: =D53 -> 21416 | F62: =D62-B62 -> -9452
A63: WC | B63: =B43+B44+B45-B35 -> 6489 | C63: =C43+C44+C45-C35 -> 9350 | D63: =D43+D44+D45-D35 -> 11461 | F63: =D63-B63 -> 4972
A64: Cash Surplus (+) | B64: =B63-B62 -> -24379 | C64: =C63-C62 -> -13807 | D64: =D63-D62 -> -9955 | F64: =D64-B64 -> 14424
A65: Credit needed (-)
A66: Verify: Cash - Credit = | B66: =B31-B41 -> -24379 | C66: =C31-C41 -> -13807 | D66: =D31-D41 -> -9955 | I66: The result must be the same as in line 64
A68: Balance Sheet Ratios | I68: Hypothesis for the Forecast
A69: Receivables in days | B69: =B32/B3*360 -> 120.057931 | C69: =C32/C3*360 -> 93.38935441 | D69: =D32/D3*360 -> 98.56317271
A70: Inventory in days | B70: =(B33/B4)*360 -> 75.53267079 | C70: =(C33/C4)*360 -> 63.17908239 | D70: =(D33/D4)*360 -> 69.94864105
A71: Payables in days | B71: =(B39/B4)*360 -> 60.83856327 | C71: =(C39/C4)*360 -> 51.2027627 | D71: =(D39/D4)*360 -> 56.70927835
A72: NFO / Sales in % | B72: =B62/B3 -> 0.3548045977 | C72: =C62/C3 -> 0.2756260712 | D72: =D62/D3 -> 0.2884970296 | H72: 0.29 | I72: 0.29
A73: Leverage = Liab. / Equity | B73: =(B42+B43)/B58 -> 2.237927565 | C73: =(C42+C43)/C58 -> 2.239090682 | D73: =(D42+D43)/D58 -> 2.187194546
A74: (Debt - Cash) / Ebitda | B74: =(B57-B52)/B9 -> 7.086093829 | C74: =(C57-C52)/C9 -> 5.44272037 | D74: =(D57-D52)/D9 -> 5.55252849 | H74: =(H57-H52)/H9 -> 4.624980976 | I74: =(I57-I52)/I9 -> 3.738854024

Sheet Anex3 HECHO (hidden)
A1: Pérdidas y Ganancias PyG | H1: Previsión
A2: (millones Euros) | B2: 2019 | C2: =B2+1 -> 2020 | D2: =C2+1 -> 2021 | H2: =D2+1 -> 2022 | I2: =H2+1 -> 2023
A3: Ventas | B3: 87000 | C3: 84016 | D3: 74233 | H3: =D3*(1+H19) -> 77944.65 | I3: =H3*(1+I19) -> 81841.8825
A4: CMV | B4: 63895 | C4: 60810 | D4: 53350 | H4: =H3-H5 -> 56120.148 | I4: =I3-I5 -> 58926.1554
A5: Margen bruto | B5: =B3-B4 -> 23105 | C5: =C3-C4 -> 23206 | D5: =D3-D4 -> 20883 | H5: =H3*H20 -> 21824.502 | I5: =I3*I20 -> 22915.7271
A6: Gastos de ventas y advos. | B6: =16640-6264 -> 10376 | C6: =15455-4126 -> 11329 | D6: =13534-3334 -> 10200
A7: Otros gastos operativos | B7: 6782 | C7: 5819 | D7: =5067 -> 5067
A8: Opex | B8: =B6+B7 -> 17158 | C8: =C6+C7 -> 17148 | D8: =D6+D7 -> 15267 | H8: =D8*(1+H22) -> 15267 | I8: =H8*(1+I22) -> 15267
A9: EBITDA | B9: =B5-B8 -> 5947 | C9: =C5-C8 -> 6058 | D9: =D5-D8 -> 5616 | H9: =H5-H8 -> 6557.502 | I9: =I5-I8 -> 7648.7271
A10: Amortización | B10: 6264 | C10: 4126 | D10: 3334 | H10: =D10 -> 3334 | I10: =H10 -> 3334
A11: EBIT | B11: =B9-B10 -> -317 | C11: =C9-C10 -> 1932 | D11: =D9-D10 -> 2282 | H11: =H9-H10 -> 3223.502 | I11: =I9-I10 -> 4314.7271
A12: Resultado financiero | B12: =2762+49+173-32+43 -> 2995 | C12: =1321-114+18+94+224 -> 1543 | D12: =642+142+61+31+214 -> 1090 | H12: 1500 | I12: 1500
A13: EBT | B13: =B11+B12 -> 2678 | C13: =C11+C12 -> 3475 | D13: =D11+D12 -> 3372 | H13: =H11+H12 -> 4723.502 | I13: =I11+I12 -> 5814.7271
A14: Impuestos (25%) | B14: 781 | C14: 849 | D14: 867 | H14: =0.25*H13 -> 1180.8755 | I14: =0.25*I13 -> 1453.681775
A15: Minoritarios | B15: 191 | C15: -29 | D15: -60
A16: Resultado del ejercicio | B16: =B13-B14+B15 -> 2088 | C16: =C13-C14+C15 -> 2597 | D16: =D13-D14+D15 -> 2445 | H16: =H13-H14 -> 3542.6265 | I16: =I13-I14 -> 4361.045325
A18: Ratios de cuenta de resultados | I18: Hipótesis para previsión
A19: Crecimiento de ventas | B19: na | C19: =C3/B3-1 -> -0.03429885057 | D19: =D3/C3-1 -> -0.1164421063 | H19: 0.05 | I19: 0.05
A20: Margen bruto / Ventas | B20: =B5/B3 -> 0.2655747126 | C20: =C5/C3 -> 0.2762092935 | D20: =D5/D3 -> 0.2813169345 | H20: 0.28 | I20: 0.28
A21: Opex / Ventas | B21: =B8/B3 -> 0.1972183908 | C21: =C8/C3 -> 0.2041039802 | D21: =D8/D3 -> 0.2056632495 | H21: =H8/H3 -> 0.1958697614 | I21: =I8/I3 -> 0.1865426299
A22: Aumento de Opex | B22: na | C22: =C8/B8-1 -> -0.0005828185103 | D22: =D8/C8-1 -> -0.1096920924 | H22: 0 | I22: 0
A23: EBITDA / Ventas | B23: =B9/B3 -> 0.06835632184 | C23: =C9/C3 -> 0.07210531327 | D23: =D9/D3 -> 0.07565368502 | H23: =H9/H3 -> 0.08413023857 | I23: =I9/I3 -> 0.09345737007
A24: ROS, rentabilidad s/ ventas | B24: =B16/B3 -> 0.024 | C24: =C16/C3 -> 0.0309107789 | D24: =D16/D3 -> 0.03293683402 | H24: =H16/H3 -> 0.04545054086 | I24: =I16/I3 -> 0.05328622939
A25: ROE, rentab. recursos propios | B25: =B16/B44 -> 0.08110627719 | C25: =C16/C44 -> 0.1209876543 | D25: =D16/D44 -> 0.1116234478 | H25: =H16/D58 -> 0.1454937164 | I25: =I16/H58 -> 0.1652435224
A26: RONA, rentabilidad activo | B26: =B11/B55 -> -0.004034824224 | C26: =C11/C55 -> 0.02815136458 | D26: =D11/D55 -> 0.03339626231 | H26: =H11/H55 -> 0.04636868177 | I26: =I11/I55 -> 0.061072601
A27: CFO, Cash Flow Operaciones | B27: =B16+B10 -> 8352 | C27: =C16+C10 -> 6723 | D27: =D16+D10 -> 5779 | H27: =H16+H10 -> 6876.6265 | I27: =I16+I10 -> 7695.045325
A30: Activo (millón Euros) | B30: =B2 -> 2019 | C30: =C2 -> 2020 | D30: =D2 -> 2021 | F30: Dife. 21-19
A31: Caja | B31: =7802+791 -> 8593 | C31: =11196+399 -> 11595 | D31: =12149+650 -> 12799 | F31: =D31-B31 -> 4206
A32: Clientes | B32: =17734+1113+10167 -> 29014 | C32: =15230+1212+5353 -> 21795 | D32: 20324 | F32: =D32-B32 -> -8690
A33: Existencias | B33: 13406 | C33: 10672 | D33: 10366 | F33: =D33-B33 -> -3040
A34: Activo corriente, AC | B34: =SUM(B31:B33) -> 51013 | C34: =SUM(C31:C33) -> 44062 | D34: =SUM(D31:D33) -> 43489
A35: Activo fijo neto, AF | B35: =90118-51013 -> 39105 | C35: =77939-44062 -> 33877 | D35: =77605-43489 -> 34116 | F35: =D35-B35 -> -4989
A36: Activo total | B36: =B34+B35 -> 90118 | C36: =C34+C35 -> 77939 | D36: =D34+D35 -> 77605
A38: Pasivo y rec. propios
A39: Proveedores | B39: 10798 | C39: 8649 | D39: 8404 | F39: =D39-B39 -> -2394
A40: Otros acreedores | B40: 754 | C40: 661 | D40: 870 | F40: =D40-B40 -> 116
A41: Crédito bancario | B41: =2637+10864+19471 -> 32972 | C41: =2103+9608+13691 -> 25402 | D41: =1745+8884+12125 -> 22754 | F41: =D41-B41 -> -10218
A42: Pasivo corriente | B42: =B39+B40+B41 -> 44524 | C42: =C39+C40+C41 -> 34712 | D42: =D39+D40+D41 -> 32028
A43: Préstamo bancario | B43: =9973+4721+111+2957 -> 17762 | C43: =10243+5326+195+3401 -> 19165 | D43: =11433+5843+534+3418 -> 21228 | F43: =D43-B43 -> 3466
A44: Patrimonio | B44: =23812+4020-2088 -> 25744 | C44: =23521+541-2597 -> 21465 | D44: =23715-2445+634 -> 21904 | F44: =D44-B44 -> -3840
A45: Beneficio del año | B45: =B16 -> 2088 | C45: =C16 -> 2597 | D45: =D16 -> 2445 | F45: =D45-B45 -> 357
A46: Total pasivo y patrimonio | B46: =B42+B43+B44+B45 -> 90118 | C46: =C42+C43+C44+C45 -> 77939 | D46: =D42+D43+D44+D45 -> 77605
A48: Compras | B48: =B4 -> 63895 | C48: =C4+(C33-B33) -> 58076 | D48: =D4+(D33-C33) -> 53044 | F48: CMV + variac. existencias
A49: Capex o Nueva inversión bruta | C49: =C35-B35+C10 -> -1102 | D49: =D35-C35+D10 -> 3573 | F49: Variación AF + amortización
H50: Previsión | I50: Previsión
A51: Balance resumido | B51: =B30 -> 2019 | C51: 2020 | D51: 2021 | F51: =F30 -> Dife. 21-19 | H51: =D30+1 -> 2022 | I51: =H51+1 -> 2023
A52: Caja excedente | B52: 8593 | C52: 11595 | D52: 12799 | F52: =D52-B52 -> 4206 | H52: =D52 -> 12799 | I52: =H52 -> 12799
A53: NOF o circulante neto | B53: =B32+B33-B39-B40 -> 30868 | C53: =C32+C33-C39-C40 -> 23157 | D53: =D32+D33-D39-D40 -> 21416 | F53: =D53-B53 -> -9452 | H53: =H72*H3 -> 22603.9485 | I53: =I72*I3 -> 23734.14593
A54: AF o activo fijo neto | B54: =B35 -> 39105 | C54: =C35 -> 33877 | D54: =D35 -> 34116 | F54: =D54-B54 -> -4989 | H54: =D54 -> 34116 | I54: =H54 -> 34116
A55: AN o activos netos | B55: =B52+B53+B54 -> 78566 | C55: =C52+C53+C54 -> 68629 | D55: =D52+D53+D54 -> 68331 | H55: =H52+H53+H54 -> 69518.9485 | I55: =I52+I53+I54 -> 70649.14593
A57: Deuda (a largo y corto) | B57: =B41+B43 -> 50734 | C57: =C41+C43 -> 44567 | D57: =D41+D43 -> 43982 | F57: =D57-B57 -> -6752 | H57: =H55-H58 -> 43127.322 | I57: =I55-I58 -> 41396.4741
A58: Recursos propios + Beneficio | B58: =B44+B45 -> 27832 | C58: =C44+C45 -> 24062 | D58: =D44+D45 -> 24349 | F58: =D58-B58 -> -3483 | H58: =D58-1500+H16 -> 26391.6265 | I58: =H58-1500+I16 -> 29252.67183
A59: Total financiación | B59: =B57+B58 -> 78566 | C59: =C57+C58 -> 68629 | D59: =D57+D58 -> 68331 | H59: =H57+H58 -> 69518.9485 | I59: =I57+I58 -> 70649.14593
A61: Extracto del balance usado en finanzas operativas
A62: NOF | B62: =B53 -> 30868 | C62: =C53 -> 23157 | D62: =D53 -> 21416 | F62: =D62-B62 -> -9452
A63: FM | B63: =B43+B44+B45-B35 -> 6489 | C63: =C43+C44+C45-C35 -> 9350 | D63: =D43+D44+D45-D35 -> 11461 | F63: =D63-B63 -> 4972
A64: Caja excedente (+) | B64: =B63-B62 -> -24379 | C64: =C63-C62 -> -13807 | D64: =D63-D62 -> -9955 | F64: =D64-B64 -> 14424
A65: o crédito necesario (-)
A66: Verificación: Caja - Crédito = | B66: =B31-B41 -> -24379 | C66: =C31-C41 -> -13807 | D66: =D31-D41 -> -9955 | I66: Debe ser igual a línea 64.
A68: Ratios de balance | I68: Hipótesis para previsión
A69: Días de cobro | B69: =B32/B3*360 -> 120.057931 | C69: =C32/C3*360 -> 93.38935441 | D69: =D32/D3*360 -> 98.56317271
A70: Días de existencias | B70: =(B33/B4)*360 -> 75.53267079 | C70: =(C33/C4)*360 -> 63.17908239 | D70: =(D33/D4)*360 -> 69.94864105
A71: Días de pago | B71: =(B39/B4)*360 -> 60.83856327 | C71: =(C39/C4)*360 -> 51.2027627 | D71: =(D39/D4)*360 -> 56.70927835
A72: NOF / Ventas en % | B72: =B62/B3 -> 0.3548045977 | C72: =C62/C3 -> 0.2756260712 | D72: =D62/D3 -> 0.2884970296 | H72: 0.29 | I72: 0.29
A73: Apalancamiento (pasivo / rec. propios) | B73: =(B42+B43)/B58 -> 2.237927565 | C73: =(C42+C43)/C58 -> 2.239090682 | D73: =(D42+D43)/D58 -> 2.187194546
A74: (Deuda - Caja) / Ebitda | B74: =(B57-B52)/B9 -> 7.086093829 | C74: =(C57-C52)/C9 -> 5.44272037 | D74: =(D57-D52)/D9 -> 5.55252849 | H74: =(H57-H52)/H9 -> 4.624980976 | I74: =(I57-I52)/I9 -> 3.738854024

Sheet Anex3 FEITO (hidden)
A1: Conta de Resultados | H1: Previsão
A2: (em € milhões) | B2: 2019 | C2: =B2+1 -> 2020 | D2: =C2+1 -> 2021 | H2: =D2+1 -> 2022 | I2: =H2+1 -> 2023
A3: Vendas | B3: 87000 | C3: 84016 | D3: 74233 | H3: =D3*(1+H19) -> 77944.65 | I3: =H3*(1+I19) -> 81841.8825
A4: CMV | B4: 63895 | C4: 60810 | D4: 53350 | H4: =H3-H5 -> 56120.148 | I4: =I3-I5 -> 58926.1554
A5: Margem Bruta | B5: =B3-B4 -> 23105 | C5: =C3-C4 -> 23206 | D5: =D3-D4 -> 20883 | H5: =H3*H20 -> 21824.502 | I5: =I3*I20 -> 22915.7271
A6: Salário | B6: =16640-6264 -> 10376 | C6: =15455-4126 -> 11329 | D6: =13534-3334 -> 10200
A7: Despesas Gerais | B7: 6782 | C7: 5819 | D7: =5067 -> 5067
A8: Opex | B8: =B6+B7 -> 17158 | C8: =C6+C7 -> 17148 | D8: =D6+D7 -> 15267 | H8: =D8*(1+H22) -> 15267 | I8: =H8*(1+I22) -> 15572.34
A9: EBITDA | B9: =B5-B8 -> 5947 | C9: =C5-C8 -> 6058 | D9: =D5-D8 -> 5616 | H9: =H5-H8 -> 6557.502 | I9: =I5-I8 -> 7343.3871
A10: Depreciação | B10: 6264 | C10: 4126 | D10: 3334 | H10: =D10 -> 3334 | I10: =H10 -> 3334
A11: EBIT ou LAJIR | B11: =B9-B10 -> -317 | C11: =C9-C10 -> 1932 | D11: =D9-D10 -> 2282 | H11: =H9-H10 -> 3223.502 | I11: =I9-I10 -> 4009.3871
A12: Despesas Financeiras | B12: =2762+49+173-32+43 -> 2995 | C12: =1321-114+18+94+224 -> 1543 | D12: =642+142+61+31+214 -> 1090 | H12: 1500 | I12: 1500
A13: EBT ou LAIR | B13: =B11+B12 -> 2678 | C13: =C11+C12 -> 3475 | D13: =D11+D12 -> 3372 | H13: =H11+H12 -> 4723.502 | I13: =I11+I12 -> 5509.3871
A14: Impostos (30%) | B14: 781 | C14: 849 | D14: 867 | H14: =0.25*H13 -> 1180.8755 | I14: =0.25*I13 -> 1377.346775
A15: Minoritários | B15: 191 | C15: -29 | D15: -60
A16: Lucro Líquido do exercício | B16: =B13-B14+B15 -> 2088 | C16: =C13-C14+C15 -> 2597 | D16: =D13-D14+D15 -> 2445 | H16: =H13-H14 -> 3542.6265 | I16: =I13-I14 -> 4132.040325
A18: Índices da conta de resultados | I18: Hipóteses para previsão
A19: Crescimento das vendas | B19: na | C19: =C3/B3-1 -> -0.03429885057 | D19: =D3/C3-1 -> -0.1164421063 | H19: 0.05 | I19: 0.05
A20: Margen bruta / Vendas | B20: =B5/B3 -> 0.2655747126 | C20: =C5/C3 -> 0.2762092935 | D20: =D5/D3 -> 0.2813169345 | H20: 0.28 | I20: 0.28
A21: Opex / Vendas | B21: =B8/B3 -> 0.1972183908 | C21: =C8/C3 -> 0.2041039802 | D21: =D8/D3 -> 0.2056632495 | H21: =H8/H3 -> 0.1958697614 | I21: =I8/I3 -> 0.1902734825
A22: Aumento de Opex | B22: na | C22: =C8/B8-1 -> -0.0005828185103 | D22: =D8/C8-1 -> -0.1096920924 | H22: 0 | I22: 0.02
A23: EBITDA / Vendas | B23: =B9/B3 -> 0.06835632184 | C23: =C9/C3 -> 0.07210531327 | D23: =D9/D3 -> 0.07565368502 | H23: =H9/H3 -> 0.08413023857 | I23: =I9/I3 -> 0.08972651747
A24: ROS, Lucro Líq. / Vendas | B24: =B16/B3 -> 0.024 | C24: =C16/C3 -> 0.0309107789 | D24: =D16/D3 -> 0.03293683402 | H24: =H16/H3 -> 0.04545054086 | I24: =I16/I3 -> 0.05048808995
A25: ROE, Lucro Líq. / PL | B25: =B16/B44 -> 0.08110627719 | C25: =C16/C44 -> 0.1209876543 | D25: =D16/D44 -> 0.1116234478 | H25: =H16/D58 -> 0.1454937164 | I25: =I16/H58 -> 0.1565663384
A26: RONA, EBIT / Ativo Líquido | B26: =B11/B55 -> -0.004034824224 | C26: =C11/C55 -> 0.02815136458 | D26: =D11/D55 -> 0.03339626231 | H26: =H11/H55 -> 0.04636868177 | I26: =I11/I55 -> 0.05675068039
A27: CFO, FC operacional | B27: =B16+B10 -> 8352 | C27: =C16+C10 -> 6723 | D27: =D16+D10 -> 5779 | H27: =H16+H10 -> 6876.6265 | I27: =I16+I10 -> 7466.040325
A30: Ativo (em € milhões) | B30: =B2 -> 2019 | C30: =C2 -> 2020 | D30: =D2 -> 2021 | F30: Dif. 2019-21
A31: Caixa | B31: =7802+791 -> 8593 | C31: =11196+399 -> 11595 | D31: =12149+650 -> 12799 | F31: =D31-B31 -> 4206
A32: Clientes ou Contas a Rec. | B32: =17734+1113+10167 -> 29014 | C32: =15230+1212+5353 -> 21795 | D32: 20324 | F32: =D32-B32 -> -8690 | K32: 20324
A33: Estoques | B33: 13406 | C33: 10672 | D33: 10366 | F33: =D33-B33 -> -3040 | K33: 10366
A34: Ativo Circulante, AC | B34: =SUM(B31:B33) -> 51013 | C34: =SUM(C31:C33) -> 44062 | D34: =SUM(D31:D33) -> 43489
A35: Ativo Fixo Líquido, AF | B35: =90118-51013 -> 39105 | C35: =77939-44062 -> 33877 | D35: =77605-43489 -> 34116 | F35: =D35-B35 -> -4989
A36: Ativo Total | B36: =B34+B35 -> 90118 | C36: =C34+C35 -> 77939 | D36: =D34+D35 -> 77605
A38: Passivo e Patrimônio Líquido
A39: Fornecedores | B39: 10798 | C39: 8649 | D39: 8404 | F39: =D39-B39 -> -2394 | K39: 8404
A40: Outros Passivos | B40: 754 | C40: 661 | D40: 870 | F40: =D40-B40 -> 116
A41: Crédito bancário | B41: =2637+10864+19471 -> 32972 | C41: =2103+9608+13691 -> 25402 | D41: =1745+8884+12125 -> 22754 | F41: =D41-B41 -> -10218
A42: Passivo Circulante | B42: =B39+B40+B41 -> 44524 | C42: =C39+C40+C41 -> 34712 | D42: =D39+D40+D41 -> 32028
A43: Empréstimo Bancário | B43: =9973+4721+111+2957 -> 17762 | C43: =10243+5326+195+3401 -> 19165 | D43: =11433+5843+534+3418 -> 21228 | F43: =D43-B43 -> 3466
A44: Recursos Próprios | B44: =23812+4020-2088 -> 25744 | C44: =23521+541-2597 -> 21465 | D44: =23715-2445+634 -> 21904 | F44: =D44-B44 -> -3840
A45: Lucro do ano | B45: =B16 -> 2088 | C45: =C16 -> 2597 | D45: =D16 -> 2445 | F45: =D45-B45 -> 357
A46: Total pasivo | B46: =B42+B43+B44+B45 -> 90118 | C46: =C42+C43+C44+C45 -> 77939 | D46: =D42+D43+D44+D45 -> 77605
A48: Compras | B48: =B4 -> 63895 | C48: =C4+(C33-B33) -> 58076 | D48: =D4+(D33-C33) -> 53044 | F48: CMV + variação de estoques
A49: Novos investimentos brutos | C49: =C35-B35+C10 -> -1102 | D49: =D35-C35+D10 -> 3573 | F49: Variação do AF + depreciação
H50: Previsão | I50: Previsão
A51: Balanço simplificado | B51: =B30 -> 2019 | C51: 2020 | D51: 2021 | F51: =F30 -> Dif. 2019-21 | H51: =D30+1 -> 2022 | I51: =H51+1 -> 2023
A52: Caixa Excedente | B52: 8593 | C52: 11595 | D52: 12799 | F52: =D52-B52 -> 4206 | H52: =D52 -> 12799 | I52: =H52 -> 12799
A53: NOF ou circulante líq. | B53: =B32+B33-B39-B40 -> 30868 | C53: =C32+C33-C39-C40 -> 23157 | D53: =D32+D33-D39-D40 -> 21416 | F53: =D53-B53 -> -9452 | H53: =H72*H3 -> 22603.9485 | I53: =I72*I3 -> 23734.14593
A54: AF o u Ativo Fixo Líquido | B54: =B35 -> 39105 | C54: =C35 -> 33877 | D54: =D35 -> 34116 | F54: =D54-B54 -> -4989 | H54: =D54 -> 34116 | I54: =H54 -> 34116
A55: AL ou Ativo Líquido | B55: =B52+B53+B54 -> 78566 | C55: =C52+C53+C54 -> 68629 | D55: =D52+D53+D54 -> 68331 | H55: =H52+H53+H54 -> 69518.9485 | I55: =I52+I53+I54 -> 70649.14593
A57: D, Dívida (de curto e longo) | B57: =B41+B43 -> 50734 | C57: =C41+C43 -> 44567 | D57: =D41+D43 -> 43982 | F57: =D57-B57 -> -6752 | H57: =H55-H58 -> 43127.322 | I57: =I55-I58 -> 41625.4791
A58: PL, Patrimônio Líquido | B58: =B44+B45 -> 27832 | C58: =C44+C45 -> 24062 | D58: =D44+D45 -> 24349 | F58: =D58-B58 -> -3483 | H58: =D58-1500+H16 -> 26391.6265 | I58: =H58-1500+I16 -> 29023.66683
A59: Total Financiamento | B59: =B57+B58 -> 78566 | C59: =C57+C58 -> 68629 | D59: =D57+D58 -> 68331 | H59: =H57+H58 -> 69518.9485 | I59: =I57+I58 -> 70649.14593
A61: Extrato do balanço usado em finanças operacionais
A62: NOF | B62: =B53 -> 30868 | C62: =C53 -> 23157 | D62: =D53 -> 21416 | F62: =D62-B62 -> -9452
A63: CG | B63: =B43+B44+B45-B35 -> 6489 | C63: =C43+C44+C45-C35 -> 9350 | D63: =D43+D44+D45-D35 -> 11461 | F63: =D63-B63 -> 4972
A64: Caixa excedente (+) | B64: =B63-B62 -> -24379 | C64: =C63-C62 -> -13807 | D64: =D63-D62 -> -9955 | F64: =D64-B64 -> 14424
A65: ou crédito necessário (-)
A66: Verificação: Caixa - Crédito = | B66: =B31-B41 -> -24379 | C66: =C31-C41 -> -13807 | D66: =D31-D41 -> -9955 | I66: Deveria ser igual à linha 64.
A68: Índices do Balanço | I68: Hipótese para previsão
A69: Días de Cobrança | B69: =B32/B3*360 -> 120.057931 | C69: =C32/C3*360 -> 93.38935441 | D69: =D32/D3*360 -> 98.56317271
A70: Dias de Estoques | B70: =(B33/B4)*360 -> 75.53267079 | C70: =(C33/C4)*360 -> 63.17908239 | D70: =(D33/D4)*360 -> 69.94864105
A71: Dias de Pagamento | B71: =(B39/B4)*360 -> 60.83856327 | C71: =(C39/C4)*360 -> 51.2027627 | D71: =(D39/D4)*360 -> 56.70927835
A72: NOF / Vendas (em %) | B72: =B62/B3 -> 0.3548045977 | C72: =C62/C3 -> 0.2756260712 | D72: =D62/D3 -> 0.2884970296 | H72: 0.29 | I72: 0.29
A73: Alavancagem (passivo / PL) | B73: =(B42+B43)/B58 -> 2.237927565 | C73: =(C42+C43)/C58 -> 2.239090682 | D73: =(D42+D43)/D58 -> 2.187194546
A74: (Dívida - Caixa) / Ebitda | B74: =(B57-B52)/B9 -> 7.086093829 | C74: =(C57-C52)/C9 -> 5.44272037 | D74: =(D57-D52)/D9 -> 5.55252849 | H74: =(H57-H52)/H9 -> 4.624980976 | I74: =(I57-I52)/I9 -> 3.925501776

Sheet Exh3 TO DO
A1: Profit and Loss Statement | H1: Forecast
A2: (million of Euros) | B2: 2019 | C2: =B2+1 -> 2020 | D2: =C2+1 -> 2021 | H2: =D2+1 -> 2022 | I2: =H2+1 -> 2023
A3: Sales | B3: 87000 | C3: 84016 | D3: 74233
A4: COGS | B4: 63895 | C4: 60810 | D4: 53350
A5: Gross Margin | B5: =B3-B4 -> 23105 | C5: =C3-C4 -> 23206 | D5: =D3-D4 -> 20883
A6: Marketing, Selling and Administrative Expenses | B6: =16640-6264 -> 10376 | C6: =15455-4126 -> 11329 | D6: =13534-3334 -> 10200
A7: Other Operating Expenses | B7: 6782 | C7: 5819 | D7: =5067 -> 5067
A8: Opex | B8: =B6+B7 -> 17158 | C8: =C6+C7 -> 17148 | D8: =D6+D7 -> 15267 | H8: =D8*(1+H22) -> 15267 | I8: =H8*(1+I22) -> 15267
A9: EBITDA | B9: =B5-B8 -> 5947 | C9: =C5-C8 -> 6058 | D9: =D5-D8 -> 5616
A10: Depreciation | B10: 6264 | C10: 4126 | D10: 3334 | H10: =D10 -> 3334 | I10: =H10 -> 3334
A11: EBIT | B11: =B9-B10 -> -317 | C11: =C9-C10 -> 1932 | D11: =D9-D10 -> 2282
A12: Financial Income / Expense | B12: =2762+49+173-32+43 -> 2995 | C12: =1321-114+18+94+224 -> 1543 | D12: =642+142+61+31+214 -> 1090 | H12: 1500 | I12: 1500
A13: EBT | B13: =B11+B12 -> 2678 | C13: =C11+C12 -> 3475 | D13: =D11+D12 -> 3372
A14: Taxes | B14: 781 | C14: 849 | D14: 867
A15: Minorities | B15: 191 | C15: -29 | D15: -60
A16: Net Income | B16: =B13-B14+B15 -> 2088 | C16: =C13-C14+C15 -> 2597 | D16: =D13-D14+D15 -> 2445
A18: P&L Ratios (Profitability Ratios) | I18: Hypothesis for the Forecast
A19: Growth of Sales | B19: na | H19: 0.05 | I19: 0.05
A20: Gross Margin / Sales | H20: 0.28 | I20: 0.28
A21: Opex / Sales
A22: Increase of Opex | B22: na | H22: 0 | I22: 0
A23: EBITDA / Sales
A24: ROS, Return on Sales
A25: ROE, Return on Equity
A26: RONA, Return on Net Assets
A27: CFO, Cash Flow from Operations
A30: Assets (million Euros) | B30: =B2 -> 2019 | C30: =C2 -> 2020 | D30: =D2 -> 2021 | F30: Diff. 2019-21
A31: Cash | B31: =7802+791 -> 8593 | C31: =11196+399 -> 11595 | D31: =12149+650 -> 12799
A32: Receivables | B32: =17734+1113+10167 -> 29014 | C32: =15230+1212+5353 -> 21795 | D32: 20324
A33: Inventory | B33: 13406 | C33: 10672 | D33: 10366
A34: Current Assets | B34: =SUM(B31:B33) -> 51013 | C34: =SUM(C31:C33) -> 44062 | D34: =SUM(D31:D33) -> 43489
A35: Fixed Assets Net | B35: =90118-51013 -> 39105 | C35: =77939-44062 -> 33877 | D35: =77605-43489 -> 34116
A36: Total Assets | B36: =B34+B35 -> 90118 | C36: =C34+C35 -> 77939 | D36: =D34+D35 -> 77605
A38: Liabilities + Equity
A39: Payables | B39: 10798 | C39: 8649 | D39: 8404
A40: Other Liabilities | B40: 754 | C40: 661 | D40: 870
A41: Bank Credit | B41: =2637+10864+19471 -> 32972 | C41: =2103+9608+13691 -> 25402 | D41: =1745+8884+12125 -> 22754
A42: Current Liabilities | B42: =B39+B40+B41 -> 44524 | C42: =C39+C40+C41 -> 34712 | D42: =D39+D40+D41 -> 32028
A43: Loan | B43: =9973+4721+111+2957 -> 17762 | C43: =10243+5326+195+3401 -> 19165 | D43: =11433+5843+534+3418 -> 21228
A44: Equity + Reserves | B44: =23812+4020-2088 -> 25744 | C44: =23521+541-2597 -> 21465 | D44: =23715-2445+634 -> 21904
A45: Net Income of the year | B45: =B16 -> 2088 | C45: =C16 -> 2597 | D45: =D16 -> 2445
A46: Total Liab.+ Equity | B46: =B42+B43+B44+B45 -> 90118 | C46: =C42+C43+C44+C45 -> 77939 | D46: =D42+D43+D44+D45 -> 77605
A48: Purchases | B48: =B4 -> 63895 | C48: =C4+(C33-B33) -> 58076 | D48: =D4+(D33-C33) -> 53044
A49: New Investments Gross | C49: =C35-B35+C10 -> -1102 | D49: =D35-C35+D10 -> 3573 | F49: Variation Assets Net + Depreciation
H50: Forecast
A51: Short Balance Sheet | B51: =B30 -> 2019 | C51: =C30 -> 2020 | D51: =D30 -> 2021 | F51: =F30 -> Diff. 2019-21 | H51: =D30+1 -> 2022 | I51: =H51+1 -> 2023
A52: Cash Surplus | H52: 12799 | I52: 12799
A53: NFO or Current Assets net
A54: FA or Fixed Assets Net | B54: =B35 -> 39105 | C54: =C35 -> 33877 | D54: =D35 -> 34116 | H54: =D54 -> 34116 | I54: =H54 -> 34116
A55: NA Net Assets
A57: Debt
A58: Equity
A59: Total Financing
A61: Shortest Balance Sheet Version - used in Operational Finance
A62: NFO
A63: WC
A64: Cash Surplus (+)
A65: Credit Needed (-)
A66: Verify: Cash - Credit = | I66: The result must be the same as in line 64
A68: Balance Sheet Ratios | I68: Hypothesis for the Forecast
A69: Receivables in days
A70: Inventory in days
A71: Payables in days
A72: NFO / Sales in % | H72: 0.29 | I72: 0.29
A73: Leverage = Liab. / Equity
A74: (Debt - Cash) / Ebitda

Sheet Anex3 HACER (hidden)
A1: Pérdidas y Ganancias PyG | H1: Previsión
A2: (millones Euros) | B2: 2019 | C2: =B2+1 -> 2020 | D2: =C2+1 -> 2021 | H2: =D2+1 -> 2022 | I2: =H2+1 -> 2023
A3: Ventas | B3: 87000 | C3: 84016 | D3: 74233
A4: CMV | B4: 63895 | C4: 60810 | D4: 53350
A5: Margen bruto | B5: =B3-B4 -> 23105 | C5: =C3-C4 -> 23206 | D5: =D3-D4 -> 20883
A6: Gastos de ventas y advos. | B6: =16640-6264 -> 10376 | C6: =15455-4126 -> 11329 | D6: =13534-3334 -> 10200
A7: Otros gastos operativos | B7: 6782 | C7: 5819 | D7: =5067 -> 5067
A8: Opex | B8: =B6+B7 -> 17158 | C8: =C6+C7 -> 17148 | D8: =D6+D7 -> 15267 | H8: =D8*(1+H22) -> 15267 | I8: =H8*(1+I22) -> 15267
A9: EBITDA | B9: =B5-B8 -> 5947 | C9: =C5-C8 -> 6058 | D9: =D5-D8 -> 5616
A10: Amortización | B10: 6264 | C10: 4126 | D10: 3334 | H10: =D10 -> 3334 | I10: =H10 -> 3334
A11: EBIT | B11: =B9-B10 -> -317 | C11: =C9-C10 -> 1932 | D11: =D9-D10 -> 2282
A12: Resultado financiero | B12: =2762+49+173-32+43 -> 2995 | C12: =1321-114+18+94+224 -> 1543 | D12: =642+142+61+31+214 -> 1090 | H12: 1500 | I12: 1500
A13: EBT | B13: =B11+B12 -> 2678 | C13: =C11+C12 -> 3475 | D13: =D11+D12 -> 3372
A14: Impuestos (25%) | B14: 781 | C14: 849 | D14: 867
A15: Minoritarios | B15: 191 | C15: -29 | D15: -60
A16: Resultado del ejercicio | B16: =B13-B14+B15 -> 2088 | C16: =C13-C14+C15 -> 2597 | D16: =D13-D14+D15 -> 2445
A18: Ratios de cuenta de resultados | I18: Hipótesis para previsión
A19: Crecimiento de ventas | B19: na | H19: 0.05 | I19: 0.05
A20: Margen bruto / Ventas | H20: 0.28 | I20: 0.28
A21: Opex / Ventas
A22: Aumento de Opex | B22: na | H22: 0 | I22: 0
A23: EBITDA / Ventas
A24: ROS, rentabilidad s/ ventas
A25: ROE, rentab. recursos propios
A26: RONA, rentabilidad activo
A27: CFO, Cash Flow Operaciones
A30: Activo (millón Euros) | B30: =B2 -> 2019 | C30: =C2 -> 2020 | D30: =D2 -> 2021 | F30: Dife. 21-19
A31: Caja | B31: =7802+791 -> 8593 | C31: =11196+399 -> 11595 | D31: =12149+650 -> 12799
A32: Clientes | B32: =17734+1113+10167 -> 29014 | C32: =15230+1212+5353 -> 21795 | D32: 20324 | K32: 20324
A33: Existencias | B33: 13406 | C33: 10672 | D33: 10366 | K33: 10366
A34: Activo corriente, AC | B34: =SUM(B31:B33) -> 51013 | C34: =SUM(C31:C33) -> 44062 | D34: =SUM(D31:D33) -> 43489
A35: Activo fijo neto, AF | B35: =90118-51013 -> 39105 | C35: =77939-44062 -> 33877 | D35: =77605-43489 -> 34116
A36: Activo total | B36: =B34+B35 -> 90118 | C36: =C34+C35 -> 77939 | D36: =D34+D35 -> 77605
A38: Pasivo y rec. propios
A39: Proveedores | B39: 10798 | C39: 8649 | D39: 8404 | K39: 8404
A40: Otros acreedores | B40: 754 | C40: 661 | D40: 870
A41: Crédito bancario | B41: =2637+10864+19471 -> 32972 | C41: =2103+9608+13691 -> 25402 | D41: =1745+8884+12125 -> 22754
A42: Pasivo corriente | B42: =B39+B40+B41 -> 44524 | C42: =C39+C40+C41 -> 34712 | D42: =D39+D40+D41 -> 32028
A43: Préstamo bancario | B43: =9973+4721+111+2957 -> 17762 | C43: =10243+5326+195+3401 -> 19165 | D43: =11433+5843+534+3418 -> 21228
A44: Patrimonio | B44: =23812+4020-2088 -> 25744 | C44: =23521+541-2597 -> 21465 | D44: =23715-2445+634 -> 21904
A45: Beneficio del año | B45: =B16 -> 2088 | C45: =C16 -> 2597 | D45: =D16 -> 2445
A46: Total pasivo y patrimonio | B46: =B42+B43+B44+B45 -> 90118 | C46: =C42+C43+C44+C45 -> 77939 | D46: =D42+D43+D44+D45 -> 77605
A48: Compras | B48: =B4 -> 63895 | C48: =C4+(C33-B33) -> 58076 | D48: =D4+(D33-C33) -> 53044 | F48: CMV + Variac. existencias
A49: Nueva inversión bruta | C49: =C35-B35+C10 -> -1102 | D49: =D35-C35+D10 -> 3573 | F49: Variación AF + Amortización
H50: Previsión | I50: Previsión
A51: Balance resumido | B51: =B30 -> 2019 | C51: =C30 -> 2020 | D51: =D30 -> 2021 | F51: =F30 -> Dife. 21-19 | H51: =D30+1 -> 2022 | I51: =H51+1 -> 2023
A52: Caja excedente | H52: 12799 | I52: 12799
A53: NOF o circulante neto
A54: AF o activo fijo neto | B54: =B35 -> 39105 | C54: =C35 -> 33877 | D54: =D35 -> 34116 | H54: =D54 -> 34116 | I54: =H54 -> 34116
A55: AN o activos netos
A57: Deuda (a largo y corto)
A58: Recursos propios + Beneficio
A59: Total financiación
A61: Extracto del balance usado en finanzas operativas
A62: NOF
A63: FM
A64: Caja excedente (+)
A65: o crédito necesario (-)
A66: Verificación: Caja - Crédito = | I66: Debe ser igual a línea 64.
A68: Ratios de balance | I68: Hipótesis para previsión
A69: Días de cobro
A70: Días de existencias
A71: Días de pago
A72: NOF / Ventas en % | H72: 0.29 | I72: 0.29
A73: Apalancamiento (pasivo / rec. propios)
A74: (Deuda - Caja) / Ebitda

Sheet Anex3 FAZER (hidden)
A1: Conta de Resultados | H1: Previsão
A2: (em € milhões) | B2: 2019 | C2: =B2+1 -> 2020 | D2: =C2+1 -> 2021 | H2: =D2+1 -> 2022 | I2: =H2+1 -> 2023
A3: Vendas | B3: 87000 | C3: 84016 | D3: 74233
A4: CMV | B4: 63895 | C4: 60810 | D4: 53350
A5: Margem Bruta | B5: =B3-B4 -> 23105 | C5: =C3-C4 -> 23206 | D5: =D3-D4 -> 20883
A6: Salário | B6: =16640-6264 -> 10376 | C6: =15455-4126 -> 11329 | D6: =13534-3334 -> 10200
A7: Despesas Gerais | B7: 6782 | C7: 5819 | D7: =5067 -> 5067
A8: Opex | B8: =B6+B7 -> 17158 | C8: =C6+C7 -> 17148 | D8: =D6+D7 -> 15267 | H8: =D8*(1+H22) -> 15267 | I8: =H8*(1+I22) -> 15267
A9: EBITDA | B9: =B5-B8 -> 5947 | C9: =C5-C8 -> 6058 | D9: =D5-D8 -> 5616
A10: Depreciação | B10: 6264 | C10: 4126 | D10: 3334 | H10: =D10 -> 3334 | I10: =H10 -> 3334
A11: EBIT ou LAJIR | B11: =B9-B10 -> -317 | C11: =C9-C10 -> 1932 | D11: =D9-D10 -> 2282
A12: Despesas Financeiras | B12: =2762+49+173-32+43 -> 2995 | C12: =1321-114+18+94+224 -> 1543 | D12: =642+142+61+31+214 -> 1090 | H12: 1500 | I12: 1500
A13: EBT ou LAIR | B13: =B11+B12 -> 2678 | C13: =C11+C12 -> 3475 | D13: =D11+D12 -> 3372
A14: Impostos (30%) | B14: 781 | C14: 849 | D14: 867
A15: Minoritários | B15: 191 | C15: -29 | D15: -60
A16: Lucro Líquido do exercício | B16: =B13-B14+B15 -> 2088 | C16: =C13-C14+C15 -> 2597 | D16: =D13-D14+D15 -> 2445
A18: Índices da conta de resultados | I18: Hipóteses para previsão
A19: Crescimento das vendas | B19: na | H19: 0.05 | I19: 0.05
A20: Margen bruta / Vendas | H20: 0.28 | I20: 0.28
A21: Opex / Vendas
A22: Aumento de Opex | B22: na | H22: 0 | I22: 0
A23: EBITDA / Vendas
A24: ROS, Lucro Líq. / Vendas
A25: ROE, Lucro Líq. / PL
A26: RONA, EBIT / Ativo Líquido
A27: CFO, FC operacional
A30: Ativo (em € milhões) | B30: =B2 -> 2019 | C30: =C2 -> 2020 | D30: =D2 -> 2021 | F30: Dif. 2019-21
A31: Caixa | B31: =7802+791 -> 8593 | C31: =11196+399 -> 11595 | D31: =12149+650 -> 12799
A32: Clientes ou Contas a Rec. | B32: =17734+1113+10167 -> 29014 | C32: =15230+1212+5353 -> 21795 | D32: 20324 | K32: 20324
A33: Estoques | B33: 13406 | C33: 10672 | D33: 10366 | K33: 10366
A34: Ativo Circulante, AC | B34: =SUM(B31:B33) -> 51013 | C34: =SUM(C31:C33) -> 44062 | D34: =SUM(D31:D33) -> 43489
A35: Ativo Fixo Líquido, AF | B35: =90118-51013 -> 39105 | C35: =77939-44062 -> 33877 | D35: =77605-43489 -> 34116
A36: Ativo Total | B36: =B34+B35 -> 90118 | C36: =C34+C35 -> 77939 | D36: =D34+D35 -> 77605
A38: Passivo e Patrimônio Líquido
A39: Fornecedores | B39: 10798 | C39: 8649 | D39: 8404 | K39: 8404
A40: Outros Passivos | B40: 754 | C40: 661 | D40: 870
A41: Crédito bancário | B41: =2637+10864+19471 -> 32972 | C41: =2103+9608+13691 -> 25402 | D41: =1745+8884+12125 -> 22754
A42: Passivo Circulante | B42: =B39+B40+B41 -> 44524 | C42: =C39+C40+C41 -> 34712 | D42: =D39+D40+D41 -> 32028
A43: Empréstimo Bancário | B43: =9973+4721+111+2957 -> 17762 | C43: =10243+5326+195+3401 -> 19165 | D43: =11433+5843+534+3418 -> 21228
A44: Recursos Próprios | B44: =23812+4020-2088 -> 25744 | C44: =23521+541-2597 -> 21465 | D44: =23715-2445+634 -> 21904
A45: Lucro do ano | B45: =B16 -> 2088 | C45: =C16 -> 2597 | D45: =D16 -> 2445
A46: Total pasivo | B46: =B42+B43+B44+B45 -> 90118 | C46: =C42+C43+C44+C45 -> 77939 | D46: =D42+D43+D44+D45 -> 77605
A48: Compras | B48: =B4 -> 63895 | C48: =C4+(C33-B33) -> 58076 | D48: =D4+(D33-C33) -> 53044 | F48: CMV + variação de estoques
A49: Novos investimentos brutos | C49: =C35-B35+C10 -> -1102 | D49: =D35-C35+D10 -> 3573 | F49: Variação do AF + depreciação
H50: Previsão
A51: Balanço simplificado | B51: =B30 -> 2019 | C51: =C30 -> 2020 | D51: =D30 -> 2021 | F51: =F30 -> Dif. 2019-21 | H51: =D30+1 -> 2022 | I51: =H51+1 -> 2023
A52: Caixa Excedente
A53: NOF ou circulante líq.
A54: AF o u Ativo Fixo Líquido | B54: =B35 -> 39105 | C54: =C35 -> 33877 | D54: =D35 -> 34116 | H54: =D54 -> 34116 | I54: =H54 -> 34116
A55: AL ou Ativo Líquido
A57: D, Dívida (de curto e longo)
A58: PL, Patrimônio Líquido
A59: Total Financiamento
A61: Extrato do balanço usado em finanças operacionais
A62: NOF
A63: CG
A64: Caixa excedente (+)
A65: ou crédito necessário (-)
A66: Verificação: Caixa - Crédito = | I66: Deveria ser igual à linha 64.
A68: Índices do Balanço | I68: Hipótese para previsão
A69: Días de Cobrança
A70: Dias de Estoques
A71: Dias de Pagamento
A72: NOF / Vendas (em %) | H72: 0.29 | I72: 0.29
A73: Alavancagem (passivo / PL)
A74: (Dívida - Caixa) / Ebitda

Sheet Tables
C2: Loja A | D2: Loja B | H2: Janeiro | I2: Fevereiro | J2: Março | K2: Abril | L2: Maio | M2: Junho
B3: Vendas | C3: 100 | D3: 100 | G3: Vendas | H3: 100 | I3: 100 | J3: 100 | K3: 400 | L3: 400 | M3: 400
B4: Lucro Líquido | C4: 10 | D4: 25 | G4: Clientes, 30 dias | H4: 100 | I4: 100 | J4: 100 | K4: 400 | L4: 400 | M4: 400
B5: Ativos | C5: 100 | D5: 250 | G5: Clientes, 60 dias | I5: 200 | J5: 200 | K5: 500 | L5: 800 | M5: 800
B6: Patrimônio Líquido | C6: 50 | D6: 125 | G6: Clientes, 90 dias | J6: 300 | K6: 600 | L6: 900 | M6: 1.200
B8: ROS | C8: 0.1 | D8: 0.025
B9: Giro | C9: 1 | D9: 4
B10: Alavacangem | C10: 2 | D10: 2
B11: ROE | C11: 0.2 | D11: 0.2
B13: ROA | C13: 0.1 | D13: 0.1
